Workbook

Sheet Sheet1
E1: Third Sector Advantage Pty Ltd | G1: Data Source: ACARA (2017), MySchool.edu.au (2017), NAPLAN (2016). Used in accordance with Terms of Use.
B6: 20
B7: 20
A8: Scoring Protocol | B8: 20 | AA8: KI | AB8: E$R Real | AC8: K O | AD8: K C | AE8: Ki One-Off
A9: Curriculum Focus | B9: 20 | D9: Weighting | F9: Grade Focus | G9: Weighting (L<R) | I9: Curriculum Focus | J9: Weighting (L<R) | X9: P`1 | Y9: 37 | AA9: 15000 | AB9: 0.05 | AC9: 150000 | AD9: =-FV(AB9,Z10,AA9,AC9) -> 548542.114
A10: Reading | B10: 20 | C10: =IF($B$15=0,0.2,B10/$B$15) -> 0.2 | D10: =C10 -> 0.2 | F10: Grade 3 | I10: =A10 -> Reading | X10: P2 | Y10: 50 | Z10: =Y10-Y9 -> 13 | AA10: 0 | AB10: =(20.6%-3%)*80% -> 0.1408 | AC10: =AD9 -> 548542.114 | AD10: =-FV(AB10,Z11,AA10,AC10) -> 2047882.812
A11: Writing | B11: 20 | C11: =IF($B$15=0,0.2,B11/$B$15) -> 0.2 | D11: =C11 -> 0.2 | F11: Grade 5 | I11: =A11 -> Writing | X11: P3 | Y11: 60 | Z11: 10 | AA11: -45000 | AB11: 0.08 | AC11: =AD10+AE11 -> 1247882.812 | AD11: =-FV(AB11,Z12,AA11,AC11) -> 2736650.188 | AE11: -800000
A12: Spelling | B12: 20 | C12: 0.2 | D12: 0.2 | F12: Grade 7 | I12: Spelling | X12: P4 | Y12: 75 | Z12: =Y12-Y11 -> 15 | AA12: -65000 | AB12: 0.03 | AC12: =AD11 -> 2736650.188 | AD12: =-FV(AB12,25,AA12,AC12) -> 3360085.585
A13: Grammar & Punctuation | B13: 20 | C13: 0.2 | D13: 0.2 | F13: Grade 9 | I13: Grammar & Punctuation | X13: 100000 | Y13: initial K
A14: Numeracy | B14: 20 | C14: 0.2 | D14: 0.2 | I14: Numeracy | X14: =1.16^Y14 -> 7.987517987 | Y14: 14 | Z14: Years
A15: Total | B15: =SUM(B10:B14) -> 100 | D15: =SUM(D10:D14) -> 1 | X15: =X14*X13 -> 798751.7987 | Y15: =X15*16% -> 127800.2878 | Z15: p.a.
B16: 0
A17: Grade Focus | B17: 0 | D17: Weighting
A18: Grade 3 | B18: 20 | C18: =IF($B$22=0,0,B18/$B$22) -> 0.5263157895 | D18: =C18 -> 0.5263157895
A19: Grade 5 | B19: 18 | C19: =IF($B$22=0,0,B19/$B$22) -> 0.4736842105 | D19: =C19 -> 0.4736842105
A20: Grade 7 | B20: 0 | C20: =IF($B$22=0,0.4,B20/$B$22) -> 0 | D20: 0
A21: Grade 9 | B21: 0 | C21: =IF($B$22=0,0.6,B21/$B$22) -> 0 | D21: 0
A22: Total | B22: =SUM(B18:B21) -> 38 | D22: =SUM(D18:D21) -> 1
A24: School | B24: Score vs National Average
A25: =VLOOKUP(B25,$D$65:$E$93,2,FALSE) -> Montmorency Primary | B25: =LARGE($D$65:$D$93,1) -> 1.120634308
A26: =VLOOKUP(B26,$D$65:$E$93,2,FALSE) -> Eltham East Primary School | B26: =LARGE($D$65:$D$93,2) -> 1.107479565
A27: =VLOOKUP(B27,$D$65:$E$93,2,FALSE) -> Montmorency South Primary | B27: =LARGE($D$65:$D$93,3) -> 1.107151304
A28: =VLOOKUP(B28,$D$65:$E$93,2,FALSE) -> Our Lady Help of Christians School | B28: =LARGE($D$65:$D$93,4) -> 1.087261667
A29: =VLOOKUP(B29,$D$65:$E$93,2,FALSE) -> Alphington Grammar School | B29: =LARGE($D$65:$D$93,5) -> 1.085044652
A30: Area Average | B30: =F93 -> 1.060070428
A31: National Average | B31: 1
S63: Score Change | Y63: Chart | AB63: Selected by Rank | AL63: Ranked By Direction
E64: GRADE WEIGHTED SUMMARY | F64: 2016 | G64: 2015 | H64: 2014 | I64: 2013 | J64: 2012 | K64: 2011 | L64: 2010 | M64: 2009 | N64: 2008 | R64: Direction | S64: 1 Year | T64: 2 Year | U64: 3 Year | W64: School | X64: Fee (Parent Contribution) | Z64: Score | AB64: Contribution | AC64: Score | AE64: Direction | AF64: 1 Year | AG64: 2 Year | AH64: 3 Year | AL64: Direction | AM64: 1 Year | AN64: 2 Year | AO64: 3 Year
D65: =F65 -> 0 | E65: Catholic Ladies' College | F65: =SUMPRODUCT(F99:F100,$D$20:$D$21) -> 0 | G65: =SUMPRODUCT(G99:G100,$D$20:$D$21) -> 0 | H65: =SUMPRODUCT(H99:H100,$D$20:$D$21) -> 0 | I65: =SUMPRODUCT(I99:I100,$D$20:$D$21) -> 0 | J65: =SUMPRODUCT(J99:J100,$D$20:$D$21) -> 0 | K65: =SUMPRODUCT(K99:K100,$D$20:$D$21) -> 0 | L65: =SUMPRODUCT(L99:L100,$D$20:$D$21) -> 0 | M65: =SUMPRODUCT(M99:M100,$D$20:$D$21) -> 0 | N65: =SUMPRODUCT(N99:N100,$D$20:$D$21) -> 0 | P65: =X65 -> 8976 | Q65: =IF(F65<0.5,"N/A",E65) -> N/A | R65: =(S65*0.5)+(0.3*T65)+(0.2*U65) -> 0 | S65: =IFERROR((F65/G65)-1,0) -> 0 | T65: =IFERROR((F65/H65)-1,0) -> 0 | U65: =IFERROR((F65/I65)-1,0) -> 0 | W65: =Q65 -> N/A | X65: =F238 -> 8976 | Y65: =IF(W65="N/A","N/A",X65) -> N/A | Z65: =IF(F65<0.5,(W65^2),F65) ->  | AA65: 1 | AB65: =LARGE($Y$65:$Y$102,AA65) -> 29147 | AC65: =VLOOKUP(AB65,$X$65:$Z$93,3,FALSE) -> 1.046239225 | AD65: =VLOOKUP(AB65,$P$65:$Q$94,2,FALSE) -> Plenty Valley Int'l Montessori (St Helena) | AE65: =(AF65*0.5)+(0.3*AG65)+(0.2*AH65) -> -0.02559566275 | AF65: =VLOOKUP(AD65,$Q$64:$U$93,3,FALSE) -> -0.01141947666 | AG65: =VLOOKUP(AD65,$Q$64:$U$93,3,FALSE) -> -0.01141947666 | AH65: =VLOOKUP(AD65,$Q$64:$U$93,5,FALSE) -> -0.08230040708 | AI65: =AD65 -> Plenty Valley Int'l Montessori (St Helena) | AK65: =VLOOKUP(AL65,$AE$65:$AI$81,5,FALSE) -> Eltham East Primary School | AL65: =LARGE($AE$65:$AE$81,AA65) -> 0.06495656673 | AM65: =VLOOKUP(AK65,$AD$65:$AH$81,3,FALSE) -> 0.06124387405 | AN65: =VLOOKUP(AK65,$AD$65:$AH$81,4,FALSE) -> 0.06124387405 | AO65: =VLOOKUP(AK65,$AD$65:$AH$81,5,FALSE) -> 0.07980733746
D66: =F66 -> 0 | E66: Eltham High | F66: =SUMPRODUCT(F102:F103,$D$20:$D$21) -> 0 | G66: =SUMPRODUCT(G102:G103,$D$20:$D$21) -> 0 | H66: =SUMPRODUCT(H102:H103,$D$20:$D$21) -> 0 | I66: =SUMPRODUCT(I102:I103,$D$20:$D$21) -> 0 | J66: =SUMPRODUCT(J102:J103,$D$20:$D$21) -> 0 | K66: =SUMPRODUCT(K102:K103,$D$20:$D$21) -> 0 | L66: =SUMPRODUCT(L102:L103,$D$20:$D$21) -> 0 | M66: =SUMPRODUCT(M102:M103,$D$20:$D$21) -> 0 | N66: =SUMPRODUCT(N102:N103,$D$20:$D$21) -> 0 | P66: =X66 -> 1106 | Q66: =IF(F66<0.5,"N/A",E66) -> N/A | R66: =(S66*0.5)+(0.3*T66)+(0.2*U66) -> 0 | S66: =IFERROR((F66/G66)-1,0) -> 0 | T66: =IFERROR((F66/H66)-1,0) -> 0 | U66: =IFERROR((F66/I66)-1,0) -> 0 | W66: =Q66 -> N/A | X66: =G260 -> 1106 | Y66: =IF(W66="N/A","N/A",X66) -> N/A | Z66: =IF(F66<0.5,(W66^2),F66) ->  | AA66: 2 | AB66: =LARGE($Y$65:$Y$102,AA66) -> 23134 | AC66: =VLOOKUP(AB66,$X$65:$Z$93,3,FALSE) -> 1.024870119 | AD66: =VLOOKUP(AB66,$P$65:$Q$94,2,FALSE) -> Ivanhoe Grammar School | AE66: =(AF66*0.5)+(0.3*AG66)+(0.2*AH66) -> -0.009157926611 | AF66: =VLOOKUP(AD66,$Q$64:$U$93,3,FALSE) -> -0.02184619399 | AG66: =VLOOKUP(AD66,$Q$64:$U$93,3,FALSE) -> -0.02184619399 | AH66: =VLOOKUP(AD66,$Q$64:$U$93,5,FALSE) -> 0.04159514289 | AI66: =AD66 -> Ivanhoe Grammar School | AK66: =VLOOKUP(AL66,$AE$65:$AI$81,5,FALSE) -> Our Lady Help of Christians School | AL66: =LARGE($AE$65:$AE$81,AA66) -> 0.02941729261 | AM66: =VLOOKUP(AK66,$AD$65:$AH$81,3,FALSE) -> 0.02410253887 | AN66: =VLOOKUP(AK66,$AD$65:$AH$81,4,FALSE) -> 0.02410253887 | AO66: =VLOOKUP(AK66,$AD$65:$AH$81,5,FALSE) -> 0.05067630756
D67: 0.992902748 | E67: Eltham College | F67: =SUMPRODUCT(F105:F108,$D$18:$D$21) -> 0.992902748 | G67: =SUMPRODUCT(G105:G108,$D$18:$D$21) -> 1.018207386 | H67: =SUMPRODUCT(H105:H108,$D$18:$D$21) -> 1.020821549 | I67: =SUMPRODUCT(I105:I108,$D$18:$D$21) -> 1.041995767 | J67: =SUMPRODUCT(J105:J108,$D$18:$D$21) -> 1.001766091 | K67: =SUMPRODUCT(K105:K108,$D$18:$D$21) -> 1.031567853 | L67: =SUMPRODUCT(L105:L108,$D$18:$D$21) -> 1.050384436 | M67: =SUMPRODUCT(M105:M108,$D$18:$D$21) -> 1.022371905 | N67: =SUMPRODUCT(N105:N108,$D$18:$D$21) -> 1.073210402 | P67: 19633 | Q67: Eltham College | R67: -0.03005375873 | S67: -0.02485214519 | T67: -0.02734934514 | U67: -0.04711441295 | W67: Eltham College | X67: =G282 -> 19633 | Y67: 19633 | Z67: 0.992902748 | AA67: 3 | AB67: 19633 | AC67: =VLOOKUP(AB67,$X$65:$Z$93,3,FALSE) -> 0.992902748 | AD67: =VLOOKUP(AB67,$P$65:$Q$94,2,FALSE) -> Eltham College | AE67: =(AF67*0.5)+(0.3*AG67)+(0.2*AH67) -> -0.02930459874 | AF67: =VLOOKUP(AD67,$Q$64:$U$93,3,FALSE) -> -0.02485214519 | AG67: =VLOOKUP(AD67,$Q$64:$U$93,3,FALSE) -> -0.02485214519 | AH67: =VLOOKUP(AD67,$Q$64:$U$93,5,FALSE) -> -0.04711441295 | AI67: Eltham College | AK67: Briar Hill Primary School | AL67: 0.02867065757 | AM67: 0.02281844996 | AN67: 0.02281844996 | AO67: 0.05207948801
D68: 1.120634308 | E68: Montmorency Primary | F68: =SUMPRODUCT(F110:F111,$D$18:$D$19) -> 1.120634308 | G68: =SUMPRODUCT(G110:G111,$D$18:$D$19) -> 1.114139898 | H68: =SUMPRODUCT(H110:H111,$D$18:$D$19) -> 1.114438467 | I68: =SUMPRODUCT(I110:I111,$D$18:$D$19) -> 1.041915773 | J68: =SUMPRODUCT(J110:J111,$D$18:$D$19) -> 1.042216114 | K68: =SUMPRODUCT(K110:K111,$D$18:$D$19) -> 1.025842438 | L68: =SUMPRODUCT(L110:L111,$D$18:$D$19) -> 1.072870532 | M68: =SUMPRODUCT(M110:M111,$D$18:$D$19) -> 0.9938206707 | N68: =SUMPRODUCT(N110:N111,$D$18:$D$19) -> 1.052932419 | P68: 361 | Q68: Montmorency Primary | R68: 0.01969276694 | S68: 0.005829078995 | T68: 0.005559607832 | U68: 0.07555172545 | W68: Montmorency Primary | X68: =G320 -> 361 | Y68: 361 | Z68: 1.120634308 | AA68: 4 | AB68: 13932 | AC68: =VLOOKUP(AB68,$X$65:$Z$93,3,FALSE) -> 1.085044652 | AD68: =VLOOKUP(AB68,$P$65:$Q$94,2,FALSE) -> Alphington Grammar School | AE68: 0.01493459699 | AF68: =VLOOKUP(AD68,$Q$64:$U$93,3,FALSE) -> 0.01554437621 | AG68: =VLOOKUP(AD68,$Q$64:$U$93,3,FALSE) -> 0.01554437621 | AH68: =VLOOKUP(AD68,$Q$64:$U$93,5,FALSE) -> 0.0124954801 | AI68: Alphington Grammar School | AK68: Alphington Grammar School | AL68: 0.01493459699 | AM68: 0.01554437621 | AN68: 0.01554437621 | AO68: 0.0124954801
D69: 1.107151304 | E69: Montmorency South Primary | F69: =SUMPRODUCT($D$18:$D$19,F113:F114) -> 1.107151304 | G69: =SUMPRODUCT($D$18:$D$19,G113:G114) -> 1.092204022 | H69: =SUMPRODUCT($D$18:$D$19,H113:H114) -> 1.107523945 | I69: =SUMPRODUCT($D$18:$D$19,I113:I114) -> 1.086057876 | J69: =SUMPRODUCT($D$18:$D$19,J113:J114) -> 1.084583578 | K69: =SUMPRODUCT($D$18:$D$19,K113:K114) -> 1.107783435 | L69: =SUMPRODUCT($D$18:$D$19,L113:L114) -> 1.100619952 | M69: =SUMPRODUCT($D$18:$D$19,M113:M114) -> 1.088447823 | N69: =SUMPRODUCT($D$18:$D$19,N113:N114) -> 1.08562956 | P69: 484 | Q69: Montmorency South Primary | R69: 0.01062617841 | S69: 0.01368542992 | T69: -0.0003364627551 | U69: 0.01942201141 | W69: Montmorency South Primary | X69: =G342 -> 484 | Y69: 484 | Z69: 1.107151304 | AA69: 5 | AB69: 5487.666667 | AC69: =VLOOKUP(AB69,$X$65:$Z$93,3,FALSE) -> 1.060070428 | AD69: =VLOOKUP(AB69,$P$65:$Q$94,2,FALSE) -> Area Average | AE69: 0.00323361526 | AF69: =VLOOKUP(AD69,$Q$64:$U$93,3,FALSE) -> 0.003352159851 | AG69: =VLOOKUP(AD69,$Q$64:$U$93,3,FALSE) -> 0.003352159851 | AH69: =VLOOKUP(AD69,$Q$64:$U$93,5,FALSE) -> 0.002759436894 | AI69: Area Average | AK69: Montmorency South Primary | AL69: 0.01483274621 | AM69: 0.01368542992 | AN69: 0.01368542992 | AO69: 0.01942201141
D70: 1.066953691 | E70: Greenhills Primary School | F70: =SUMPRODUCT($D$18:$D$19,F116:F117) -> 1.066953691 | G70: =SUMPRODUCT($D$18:$D$19,G116:G117) -> 1.048891751 | H70: =SUMPRODUCT($D$18:$D$19,H116:H117) -> 1.085379379 | I70: =SUMPRODUCT($D$18:$D$19,I116:I117) -> 1.075023075 | J70: =SUMPRODUCT($D$18:$D$19,J116:J117) -> 1.070991939 | K70: =SUMPRODUCT($D$18:$D$19,K116:K117) -> 1.073113843 | L70: =SUMPRODUCT($D$18:$D$19,L116:L117) -> 1.06909643 | M70: =SUMPRODUCT($D$18:$D$19,M116:M117) -> 0.9663526417 | N70: =SUMPRODUCT($D$18:$D$19,N116:N117) -> 1.062944138 | P70: 625 | Q70: Greenhills Primary School | R70: 0.002015883259 | S70: 0.01722002271 | T70: -0.01697626511 | U70: -0.007506242806 | W70: Greenhills Primary School | X70: =G364 -> 625 | Y70: 625 | Z70: 1.066953691 | AA70: 6 | AB70: 2145 | AC70: =VLOOKUP(AB70,$X$65:$Z$93,3,FALSE) -> 1.087261667 | AD70: =VLOOKUP(AB70,$P$65:$Q$94,2,FALSE) -> Our Lady Help of Christians School | AE70: 0.02941729261 | AF70: =VLOOKUP(AD70,$Q$64:$U$93,3,FALSE) -> 0.02410253887 | AG70: =VLOOKUP(AD70,$Q$64:$U$93,3,FALSE) -> 0.02410253887 | AH70: =VLOOKUP(AD70,$Q$64:$U$93,5,FALSE) -> 0.05067630756 | AI70: Our Lady Help of Christians School | AK70: Greenhills Primary School | AL70: 0.01227476961 | AM70: 0.01722002271 | AN70: 0.01722002271 | AO70: -0.007506242806
D71: 0 | E71: Montmorency Secondary College | F71: =SUMPRODUCT($D$20:$D$21,F119:F120) -> 0 | G71: =SUMPRODUCT($D$20:$D$21,G119:G120) -> 0 | H71: =SUMPRODUCT($D$20:$D$21,H119:H120) -> 0 | I71: =SUMPRODUCT($D$20:$D$21,I119:I120) -> 0 | J71: =SUMPRODUCT($D$20:$D$21,J119:J120) -> 0 | K71: =SUMPRODUCT($D$20:$D$21,K119:K120) -> 0 | L71: =SUMPRODUCT($D$20:$D$21,L119:L120) -> 0 | M71: =SUMPRODUCT($D$20:$D$21,M119:M120) -> 0 | N71: =SUMPRODUCT($D$20:$D$21,N119:N120) -> 0 | P71: 768 | Q71: =IF(F71<0.5,"N/A",E71) -> N/A | R71: 0 | S71: 0 | T71: 0 | U71: 0 | W71: =Q71 -> N/A | X71: =G386 -> 768 | Y71: N/A | Z71: =IF(F71<0.5,(W71^2),F71) ->  | AA71: 7 | AB71: 2005 | AC71: =VLOOKUP(AB71,$X$65:$Z$93,3,FALSE) -> 1.044804811 | AD71: =VLOOKUP(AB71,$P$65:$Q$94,2,FALSE) -> St Francis Xavier | AE71: 0.01043021696 | AF71: =VLOOKUP(AD71,$Q$64:$U$93,3,FALSE) -> 0.01299982366 | AG71: =VLOOKUP(AD71,$Q$64:$U$93,3,FALSE) -> 0.01299982366 | AH71: =VLOOKUP(AD71,$Q$64:$U$93,5,FALSE) -> 0.0001517901615 | AI71: St Francis Xavier | AK71: St Francis Xavier | AL71: 0.01043021696 | AM71: 0.01299982366 | AN71: 0.01299982366 | AO71: 0.0001517901615
D72: 1.044804811 | E72: St Francis Xavier | F72: =SUMPRODUCT($D$18:$D$19,F122:F123) -> 1.044804811 | G72: =SUMPRODUCT($D$18:$D$19,G122:G123) -> 1.031396834 | H72: =SUMPRODUCT($D$18:$D$19,H122:H123) -> 1.053842028 | I72: =SUMPRODUCT($D$18:$D$19,I122:I123) -> 1.044646244 | J72: =SUMPRODUCT($D$18:$D$19,J122:J123) -> 1.070156832 | K72: =SUMPRODUCT($D$18:$D$19,K122:K123) -> 1.058231581 | L72: =SUMPRODUCT($D$18:$D$19,L122:L123) -> 1.055687037 | M72: =SUMPRODUCT($D$18:$D$19,M122:M123) -> 1.067847686 | N72: =SUMPRODUCT($D$18:$D$19,N122:N123) -> 1.055486912 | P72: 2005 | Q72: =IF(F72<0.5,"N/A",E72) -> St Francis Xavier | R72: 0.003957621274 | S72: 0.01299982366 | T72: -0.008575495301 | U72: 0.0001517901615 | W72: =Q72 -> St Francis Xavier | X72: =G408 -> 2005 | Y72: 2005 | Z72: 1.044804811 | AA72: 8 | AB72: 920 | AC72: =VLOOKUP(AB72,$X$65:$Z$93,3,FALSE) -> 1.06408699 | AD72: =VLOOKUP(AB72,$P$65:$Q$94,2,FALSE) -> Eltham North Primary School | AE72: 0.006771164449 | AF72: =VLOOKUP(AD72,$Q$64:$U$93,3,FALSE) -> 0.01122302235 | AG72: =VLOOKUP(AD72,$Q$64:$U$93,3,FALSE) -> 0.01122302235 | AH72: =VLOOKUP(AD72,$Q$64:$U$93,5,FALSE) -> -0.01103626717 | AI72: Eltham North Primary School | AK72: Eltham North Primary School | AL72: 0.006771164449 | AM72: 0.01122302235 | AN72: 0.01122302235 | AO72: -0.01103626717
D73: 1.025034265 | E73: Lower Plenty Primary School | F73: =SUMPRODUCT($D$18:$D$19,F125:F126) -> 1.025034265 | G73: =SUMPRODUCT($D$18:$D$19,G125:G126) -> 1.055169538 | H73: =SUMPRODUCT($D$18:$D$19,H125:H126) -> 1.026425197 | I73: =SUMPRODUCT($D$18:$D$19,I125:I126) -> 1.09127478 | J73: =SUMPRODUCT($D$18:$D$19,J125:J126) -> 1.061937598 | K73: =SUMPRODUCT($D$18:$D$19,K125:K126) -> 1.121100555 | L73: =SUMPRODUCT($D$18:$D$19,L125:L126) -> 1.208536425 | M73: =SUMPRODUCT($D$18:$D$19,M125:M126) -> 1.101318948 | N73: =SUMPRODUCT($D$18:$D$19,N125:N126) -> 1.079006485 | P73: 472 | Q73: Lower Plenty Primary School | R73: -0.02682638678 | S73: -0.02855965032 | T73: -0.001355122703 | U73: -0.06070012403 | W73: Lower Plenty Primary School | X73: =G430 -> 472 | Y73: 472 | Z73: 1.025034265 | AA73: 9 | AB73: 870 | AC73: =VLOOKUP(AB73,$X$65:$Z$93,3,FALSE) -> 1.018826472 | AD73: =VLOOKUP(AB73,$P$65:$Q$94,2,FALSE) -> Sherbourne Primary School, Briar Hill | AE73: -0.01391140604 | AF73: =VLOOKUP(AD73,$Q$64:$U$93,3,FALSE) -> -0.01087827992 | AG73: =VLOOKUP(AD73,$Q$64:$U$93,3,FALSE) -> -0.01087827992 | AH73: =VLOOKUP(AD73,$Q$64:$U$93,5,FALSE) -> -0.02604391049 | AI73: Sherbourne Primary School, Briar Hill | AK73: Apollo Parkways Primary (Greensborough) | AL73: 0.006758251423 | AM73: 0.01265034434 | AN73: 0.01265034434 | AO73: -0.01681012024
D74: 1.046239225 | E74: Plenty Valley Int'l Montessori (St Helena) | F74: =SUMPRODUCT($D$18:$D$19,F128:F129) -> 1.046239225 | G74: =SUMPRODUCT($D$18:$D$19,G128:G129) -> 1.058324739 | H74: =SUMPRODUCT($D$18:$D$19,H128:H129) -> 1.048091511 | I74: =SUMPRODUCT($D$18:$D$19,I128:I129) -> 1.140067221 | J74: =SUMPRODUCT($D$18:$D$19,J128:J129) -> 1.052849975 | K74: =SUMPRODUCT($D$18:$D$19,K128:K129) -> 1.036699789 | L74: =SUMPRODUCT($D$18:$D$19,L128:L129) -> 1.064024132 | M74: =SUMPRODUCT($D$18:$D$19,M128:M129) -> 0.9869348888 | N74: =SUMPRODUCT($D$18:$D$19,N128:N129) -> 1.061464098 | P74: 29147 | Q74: =IF(F74<0.5,"N/A",E74) -> Plenty Valley Int'l Montessori (St Helena) | R74: -0.02270000816 | S74: -0.01141947666 | T74: -0.001767294717 | U74: -0.08230040708 | W74: Plenty Valley Int'l Montessori (St Helena) | X74: =G452 -> 29147 | Y74: 29147 | Z74: 1.046239225 | AA74: 10 | AB74: 802 | AC74: =VLOOKUP(AB74,$X$65:$Z$93,3,FALSE) -> 1.040534228 | AD74: =VLOOKUP(AB74,$P$65:$Q$94,2,FALSE) -> Briar Hill Primary School | AE74: 0.02867065757 | AF74: =VLOOKUP(AD74,$Q$64:$U$93,3,FALSE) -> 0.02281844996 | AG74: =VLOOKUP(AD74,$Q$64:$U$93,3,FALSE) -> 0.02281844996 | AH74: =VLOOKUP(AD74,$Q$64:$U$93,5,FALSE) -> 0.05207948801 | AI74: Briar Hill Primary School | AK74: Area Average | AL74: 0.00323361526 | AM74: 0.003352159851 | AN74: 0.003352159851 | AO74: 0.002759436894
D75: 1.107479565 | E75: Eltham East Primary School | F75: =SUMPRODUCT($D$18:$D$19,F134:F135) -> 1.107479565 | G75: =SUMPRODUCT($D$18:$D$19,G134:G135) -> 1.043567451 | H75: =SUMPRODUCT($D$18:$D$19,H134:H135) -> 1.035186496 | I75: =SUMPRODUCT($D$18:$D$19,I134:I135) -> 1.025627005 | J75: =SUMPRODUCT($D$18:$D$19,J134:J135) -> 1.025756337 | K75: =SUMPRODUCT($D$18:$D$19,K134:K135) -> 1.031541936 | L75: =SUMPRODUCT($D$18:$D$19,L134:L135) -> 1.017641395 | M75: =SUMPRODUCT($D$18:$D$19,M134:M135) -> 1.027902794 | N75: =SUMPRODUCT($D$18:$D$19,N134:N135) -> 1.028506964 | P75: 674 | Q75: =IF(F75<0.5,"N/A",E75) -> Eltham East Primary School | R75: 0.06753414218 | S75: 0.06124387405 | T75: 0.06983579222 | U75: 0.07980733746 | W75: Eltham East Primary School | X75: =G496 -> 674 | Y75: 674 | Z75: =IF(F81<0.5,(W75^2),F81) ->  | AA75: 11 | AB75: 674 | AC75: =VLOOKUP(AB75,$X$65:$Z$93,3,FALSE) ->  | AD75: =VLOOKUP(AB75,$P$65:$Q$94,2,FALSE) -> Eltham East Primary School | AE75: 0.06495656673 | AF75: =VLOOKUP(AD75,$Q$64:$U$93,3,FALSE) -> 0.06124387405 | AG75: =VLOOKUP(AD75,$Q$64:$U$93,3,FALSE) -> 0.06124387405 | AH75: =VLOOKUP(AD75,$Q$64:$U$93,5,FALSE) -> 0.07980733746 | AI75: Eltham East Primary School | AK75: Ivanhoe Grammar School | AL75: -0.009157926611 | AM75: -0.02184619399 | AN75: -0.02184619399 | AO75: 0.04159514289
D76: 1.07976073 | E76: Eltham Primary School | F76: =SUMPRODUCT($D$18:$D$19,F137:F138) -> 1.07976073 | G76: =SUMPRODUCT($D$18:$D$19,G137:G138) -> 1.115875303 | H76: =SUMPRODUCT($D$18:$D$19,H137:H138) -> 1.109498899 | I76: =SUMPRODUCT($D$18:$D$19,I137:I138) -> 1.087981875 | J76: =SUMPRODUCT($D$18:$D$19,J137:J138) -> 1.101907378 | K76: =SUMPRODUCT($D$18:$D$19,K137:K138) -> 1.077813952 | L76: =SUMPRODUCT($D$18:$D$19,L137:L138) -> 1.07001501 | M76: =SUMPRODUCT($D$18:$D$19,M137:M138) -> 1.107821608 | N76: =SUMPRODUCT($D$18:$D$19,N137:N138) -> 1.079036216 | P76: 440 | Q76: Eltham Primary School | R76: -0.02573441067 | S76: -0.03236434494 | T76: -0.02680324377 | U76: -0.007556325355 | W76: Eltham Primary School | X76: =F518 -> 440 | Y76: 440 | Z76: 1.07976073 | AA76: 12 | AB76: 625 | AC76: =VLOOKUP(AB76,$X$65:$Z$93,3,FALSE) -> 1.066953691 | AD76: =VLOOKUP(AB76,$P$65:$Q$94,2,FALSE) -> Greenhills Primary School | AE76: 0.01227476961 | AF76: =VLOOKUP(AD76,$Q$64:$U$93,3,FALSE) -> 0.01722002271 | AG76: =VLOOKUP(AD76,$Q$64:$U$93,3,FALSE) -> 0.01722002271 | AH76: =VLOOKUP(AD76,$Q$64:$U$93,5,FALSE) -> -0.007506242806 | AI76: Greenhills Primary School | AK76: Sherbourne Primary School, Briar Hill | AL76: -0.01391140604 | AM76: -0.01087827992 | AN76: -0.01087827992 | AO76: -0.02604391049
D77: 1.087261667 | E77: Our Lady Help of Christians School | F77: =SUMPRODUCT($D$18:$D$19,F140:F141) -> 1.087261667 | G77: =SUMPRODUCT($D$18:$D$19,G140:G141) -> 1.061672661 | H77: =SUMPRODUCT($D$18:$D$19,H140:H141) -> 1.053892732 | I77: =SUMPRODUCT($D$18:$D$19,I140:I141) -> 1.034820771 | J77: =SUMPRODUCT($D$18:$D$19,J140:J141) -> 1.052725029 | K77: =SUMPRODUCT($D$18:$D$19,K140:K141) -> 1.049779713 | L77: =SUMPRODUCT($D$18:$D$19,L140:L141) -> 1.036422013 | M77: =SUMPRODUCT($D$18:$D$19,M140:M141) -> 1.096942259 | N77: =SUMPRODUCT($D$18:$D$19,N140:N141) -> 1.089634071 | P77: 2145 | Q77: Our Lady Help of Christians School | R77: 0.03168529704 | S77: 0.02410253887 | T77: 0.03166255364 | U77: 0.05067630756 | W77: Our Lady Help of Christians School | X77: =F540 -> 2145 | Y77: 2145 | Z77: 1.087261667 | AA77: 13 | AB77: 603 | AC77: =VLOOKUP(AB77,$X$65:$Z$93,3,FALSE) -> 1.074516301 | AD77: =VLOOKUP(AB77,$P$65:$Q$94,2,FALSE) -> Apollo Parkways Primary (Greensborough) | AE77: 0.006758251423 | AF77: =VLOOKUP(AD77,$Q$64:$U$93,3,FALSE) -> 0.01265034434 | AG77: =VLOOKUP(AD77,$Q$64:$U$93,3,FALSE) -> 0.01265034434 | AH77: =VLOOKUP(AD77,$Q$64:$U$93,5,FALSE) -> -0.01681012024 | AI77: Apollo Parkways Primary (Greensborough) | AK77: Plenty Valley Int'l Montessori (St Helena) | AL77: -0.02559566275 | AM77: -0.01141947666 | AN77: -0.01141947666 | AO77: -0.08230040708
D78: 1.06408699 | E78: Eltham North Primary School | F78: =SUMPRODUCT($D$18:$D$19,F143:F144) -> 1.06408699 | G78: =SUMPRODUCT($D$18:$D$19,G143:G144) -> 1.052277259 | H78: =SUMPRODUCT($D$18:$D$19,H143:H144) -> 1.064335428 | I78: =SUMPRODUCT($D$18:$D$19,I143:I144) -> 1.07596159 | J78: =SUMPRODUCT($D$18:$D$19,J143:J144) -> 1.111159551 | K78: =SUMPRODUCT($D$18:$D$19,K143:K144) -> 1.119355481 | L78: =SUMPRODUCT($D$18:$D$19,L143:L144) -> 1.111104085 | M78: =SUMPRODUCT($D$18:$D$19,M143:M144) -> 1.090248888 | N78: =SUMPRODUCT($D$18:$D$19,N143:N144) -> 1.100378942 | P78: 920 | Q78: Eltham North Primary School | R78: 0.003334231557 | S78: 0.01122302235 | T78: -0.0002334206182 | U78: -0.01103626717 | W78: Eltham North Primary School | X78: =F562 -> 920 | Y78: 920 | Z78: 1.06408699 | AA78: 14 | AB78: 484 | AC78: =VLOOKUP(AB78,$X$65:$Z$93,3,FALSE) -> 1.107151304 | AD78: =VLOOKUP(AB78,$P$65:$Q$94,2,FALSE) -> Montmorency South Primary | AE78: 0.01483274621 | AF78: =VLOOKUP(AD78,$Q$64:$U$93,3,FALSE) -> 0.01368542992 | AG78: =VLOOKUP(AD78,$Q$64:$U$93,3,FALSE) -> 0.01368542992 | AH78: =VLOOKUP(AD78,$Q$64:$U$93,5,FALSE) -> 0.01942201141 | AI78: Montmorency South Primary | AK78: Eltham Primary School | AL78: -0.02740274102 | AM78: -0.03236434494 | AN78: -0.03236434494 | AO78: -0.007556325355
D79: 1.074516301 | E79: Apollo Parkways Primary (Greensborough) | F79: =SUMPRODUCT($D$18:$D$19,F146:F147) -> 1.074516301 | G79: =SUMPRODUCT($D$18:$D$19,G146:G147) -> 1.061093108 | H79: =SUMPRODUCT($D$18:$D$19,H146:H147) -> 1.063680539 | I79: =SUMPRODUCT($D$18:$D$19,I146:I147) -> 1.092887878 | J79: =SUMPRODUCT($D$18:$D$19,J146:J147) -> 1.077041467 | K79: =SUMPRODUCT($D$18:$D$19,K146:K147) -> 1.091296347 | L79: =SUMPRODUCT($D$18:$D$19,L146:L147) -> 1.089153181 | M79: =SUMPRODUCT($D$18:$D$19,M146:M147) -> 1.077824707 | N79: =SUMPRODUCT($D$18:$D$19,N146:N147) -> 1.104332242 | P79: 603 | Q79: Apollo Parkways Primary (Greensborough) | R79: 0.006019261904 | S79: 0.01265034434 | T79: 0.01018704594 | U79: -0.01681012024 | W79: Apollo Parkways Primary (Greensborough) | X79: =F584 -> 603 | Y79: =IF(W79="N/A","N/A",X79) -> 603 | Z79: =IF(F79<0.5,(W79^2),F79) -> 1.074516301 | AA79: 15 | AB79: 472 | AC79: =VLOOKUP(AB79,$X$65:$Z$93,3,FALSE) -> 1.025034265 | AD79: =VLOOKUP(AB79,$P$65:$Q$94,2,FALSE) -> Lower Plenty Primary School | AE79: -0.03498774506 | AF79: =VLOOKUP(AD79,$Q$64:$U$93,3,FALSE) -> -0.02855965032 | AG79: =VLOOKUP(AD79,$Q$64:$U$93,3,FALSE) -> -0.02855965032 | AH79: =VLOOKUP(AD79,$Q$64:$U$93,5,FALSE) -> -0.06070012403 | AI79: Lower Plenty Primary School | AK79: Eltham College | AL79: -0.02930459874 | AM79: -0.02485214519 | AN79: -0.02485214519 | AO79: -0.04711441295
D80: 1.040534228 | E80: Briar Hill Primary School | F80: =SUMPRODUCT($D$18:$D$19,F172:F173) -> 1.040534228 | G80: =SUMPRODUCT($D$18:$D$19,G172:G173) -> 1.01732055 | H80: =SUMPRODUCT($D$18:$D$19,H172:H173) -> 1.04744057 | I80: =SUMPRODUCT($D$18:$D$19,I172:I173) -> 0.9890262478 | J80: =SUMPRODUCT($D$18:$D$19,J172:J173) -> 0.9951965246 | K80: =SUMPRODUCT($D$18:$D$19,K172:K173) -> 1.053938569 | L80: =SUMPRODUCT($D$18:$D$19,L172:L173) -> 1.03239982 | M80: =SUMPRODUCT($D$18:$D$19,M172:M173) -> 0.9815263382 | N80: =SUMPRODUCT($D$18:$D$19,N172:N173) -> 0.9977765525 | P80: 802 | Q80: =IF(F80<0.5,"N/A",E80) -> Briar Hill Primary School | R80: 0.01984706047 | S80: 0.02281844996 | T80: -0.006593540364 | U80: 0.05207948801 | W80: =Q80 -> Briar Hill Primary School | X80: =F606 -> 802 | Y80: 802 | Z80: 1.040534228 | AA80: 16 | AB80: 440 | AC80: =VLOOKUP(AB80,$X$65:$Z$93,3,FALSE) -> 1.07976073 | AD80: =VLOOKUP(AB80,$P$65:$Q$94,2,FALSE) -> Eltham Primary School | AE80: =(AF80*0.5)+(0.3*AG80)+(0.2*AH80) -> -0.02740274102 | AF80: =VLOOKUP(AD80,$Q$64:$U$93,3,FALSE) -> -0.03236434494 | AG80: =VLOOKUP(AD80,$Q$64:$U$93,3,FALSE) -> -0.03236434494 | AH80: =VLOOKUP(AD80,$Q$64:$U$93,5,FALSE) -> -0.007556325355 | AI80: =AD80 -> Eltham Primary School | AK80: Lower Plenty Primary School | AL80: -0.03498774506 | AM80: -0.02855965032 | AN80: -0.02855965032 | AO80: -0.06070012403
D81: 0 | E81: St Helena Secondary School | F81: =SUMPRODUCT($D$20:$D$21,F131:F132) -> 0 | G81: =SUMPRODUCT($D$20:$D$21,G131:G132) -> 0 | H81: =SUMPRODUCT($D$20:$D$21,H131:H132) -> 0 | I81: =SUMPRODUCT($D$20:$D$21,I131:I132) -> 0 | J81: =SUMPRODUCT($D$20:$D$21,J131:J132) -> 0 | K81: =SUMPRODUCT($D$20:$D$21,K131:K132) -> 0 | L81: =SUMPRODUCT($D$20:$D$21,L131:L132) -> 0 | M81: =SUMPRODUCT($D$20:$D$21,M131:M132) -> 0 | N81: =SUMPRODUCT($D$20:$D$21,N131:N132) -> 0 | P81: 850 | Q81: N/A | R81: 0 | S81: 0 | T81: 0 | U81: 0 | W81: N/A | X81: =G474 -> 850 | Y81: N/A | AA81: 17 | AI81: =AD81 -> 0 | AK81: =VLOOKUP(AL81,$AE$65:$AI$81,5,FALSE) -> 
D82: 0 | E82: Greensborough Secondary College | F82: =SUMPRODUCT($D$20:$D$21,F149:F150) -> 0 | G82: =SUMPRODUCT($D$20:$D$21,G149:G150) -> 0 | H82: =SUMPRODUCT($D$20:$D$21,H149:H150) -> 0 | I82: =SUMPRODUCT($D$20:$D$21,I149:I150) -> 0 | J82: =SUMPRODUCT($D$20:$D$21,J149:J150) -> 0 | K82: =SUMPRODUCT($D$20:$D$21,K149:K150) -> 0 | L82: =SUMPRODUCT($D$20:$D$21,L149:L150) -> 0 | M82: =SUMPRODUCT($D$20:$D$21,M149:M150) -> 0 | N82: =SUMPRODUCT($D$20:$D$21,N149:N150) -> 0 | P82: 1053 | Q82: =IF(F82<0.5,"N/A",E82) -> N/A | R82: 0 | S82: 0 | T82: 0 | U82: 0 | W82: =Q82 -> N/A | X82: =G628 -> 1053 | Y82: =IF(W82="N/A","N/A",X82) -> N/A | Z82: =IF(F82<0.5,(W82^2),F82) ->  | AD82: =VLOOKUP(AB82,$P$65:$Q$94,2,FALSE) -> 0 | AE82: =AVERAGE(AF82:AH82) ->  | AF82: =VLOOKUP(AD82,$Q$64:$U$93,3,FALSE) ->  | AG82: =VLOOKUP(AD82,$Q$64:$U$93,3,FALSE) ->  | AH82: =VLOOKUP(AD82,$Q$64:$U$93,5,FALSE) -> 
D83: 1.024870119 | E83: Ivanhoe Grammar School | F83: =SUMPRODUCT($D$18:$D$21,F152:F155) -> 1.024870119 | G83: =SUMPRODUCT($D$18:$D$21,G152:G155) -> 1.04775968 | H83: =SUMPRODUCT($D$18:$D$21,H152:H155) -> 1.006095486 | I83: =SUMPRODUCT($D$18:$D$21,I152:I155) -> 0.9839428746 | J83: =SUMPRODUCT($D$18:$D$21,J152:J155) -> 1.059522765 | K83: =SUMPRODUCT($D$18:$D$21,K152:K155) -> 1.045982953 | L83: =SUMPRODUCT($D$18:$D$21,L152:L155) -> 1.0250697 | M83: =SUMPRODUCT($D$18:$D$21,M152:M155) -> 1.044645583 | N83: =SUMPRODUCT($D$18:$D$21,N152:N155) -> 0.9881149274 | P83: 23134 | Q83: Ivanhoe Grammar School | R83: 0.00299419733 | S83: -0.02184619399 | T83: 0.01866088582 | U83: 0.04159514289 | W83: Ivanhoe Grammar School | X83: =G650 -> 23134 | Y83: 23134 | Z83: 1.024870119 | AD83: =VLOOKUP(AB83,$P$65:$Q$94,2,FALSE) -> 0 | AF83: =VLOOKUP(AD83,$Q$64:$U$93,3,FALSE) ->  | AG83: =VLOOKUP(AD83,$Q$64:$U$93,3,FALSE) ->  | AH83: =VLOOKUP(AD83,$Q$64:$U$93,5,FALSE) -> 
D84: 0 | E84: Templestowe College | F84: =SUMPRODUCT($D$20:$D$21,F157:F158) -> 0 | G84: =SUMPRODUCT($D$20:$D$21,G157:G158) -> 0 | H84: =SUMPRODUCT($D$20:$D$21,H157:H158) -> 0 | I84: =SUMPRODUCT($D$20:$D$21,I157:I158) -> 0 | J84: =SUMPRODUCT($D$20:$D$21,J157:J158) -> 0 | K84: =SUMPRODUCT($D$20:$D$21,K157:K158) -> 0 | L84: =SUMPRODUCT($D$20:$D$21,L157:L158) -> 0 | M84: =SUMPRODUCT($D$20:$D$21,M157:M158) -> 0 | N84: =SUMPRODUCT($D$20:$D$21,N157:N158) -> 0 | P84: 2233 | Q84: N/A | R84: 0 | S84: 0 | T84: 0 | U84: 0 | W84: N/A | X84: =G688 -> 2233 | Y84: N/A | AD84: =VLOOKUP(AB84,$P$65:$Q$94,2,FALSE) -> 0 | AF84: =VLOOKUP(AD84,$Q$64:$U$93,3,FALSE) ->  | AG84: =VLOOKUP(AD84,$Q$64:$U$93,3,FALSE) ->  | AH84: =VLOOKUP(AD84,$Q$64:$U$93,5,FALSE) -> 
D85: 0 | E85: Marcellin College, Bulleen | F85: =SUMPRODUCT($D$20:$D$21,F160:F161) -> 0 | G85: =SUMPRODUCT($D$20:$D$21,G160:G161) -> 0 | H85: =SUMPRODUCT($D$20:$D$21,H160:H161) -> 0 | I85: =SUMPRODUCT($D$20:$D$21,I160:I161) -> 0 | J85: =SUMPRODUCT($D$20:$D$21,J160:J161) -> 0 | K85: =SUMPRODUCT($D$20:$D$21,K160:K161) -> 0 | L85: =SUMPRODUCT($D$20:$D$21,L160:L161) -> 0 | M85: =SUMPRODUCT($D$20:$D$21,M160:M161) -> 0 | N85: =SUMPRODUCT($D$20:$D$21,N160:N161) -> 0 | P85: 9369 | Q85: N/A | R85: 0 | S85: 0 | T85: 0 | U85: 0 | W85: N/A | X85: =G710 -> 9369 | Y85: N/A | AD85: =VLOOKUP(AB85,$P$65:$Q$94,2,FALSE) -> 0 | AF85: =VLOOKUP(AD85,$Q$64:$U$93,3,FALSE) ->  | AG85: =VLOOKUP(AD85,$Q$64:$U$93,3,FALSE) ->  | AH85: =VLOOKUP(AD85,$Q$64:$U$93,5,FALSE) -> 
D86: 0 | E86: Loyola College, Watsonia | F86: =SUMPRODUCT($D$20:$D$21,F163:F164) -> 0 | G86: =SUMPRODUCT($D$20:$D$21,G163:G164) -> 0 | H86: =SUMPRODUCT($D$20:$D$21,H163:H164) -> 0 | I86: =SUMPRODUCT($D$20:$D$21,I163:I164) -> 0 | J86: =SUMPRODUCT($D$20:$D$21,J163:J164) -> 0 | K86: =SUMPRODUCT($D$20:$D$21,K163:K164) -> 0 | L86: =SUMPRODUCT($D$20:$D$21,L163:L164) -> 0 | M86: =SUMPRODUCT($D$20:$D$21,M163:M164) -> 0 | N86: =SUMPRODUCT($D$20:$D$21,N163:N164) -> 0 | P86: 6392 | Q86: N/A | R86: 0 | S86: 0 | T86: 0 | U86: 0 | W86: N/A | X86: =G732 -> 6392 | Y86: N/A | AD86: =VLOOKUP(AB86,$P$65:$Q$94,2,FALSE) -> 0 | AF86: =VLOOKUP(AD86,$Q$64:$U$93,3,FALSE) ->  | AG86: =VLOOKUP(AD86,$Q$64:$U$93,3,FALSE) ->  | AH86: =VLOOKUP(AD86,$Q$64:$U$93,5,FALSE) -> 
D87: 0 | E87: Bundoora Secondary College | F87: =SUMPRODUCT($D$20:$D$21,F166:F167) -> 0 | G87: =SUMPRODUCT($D$20:$D$21,G166:G167) -> 0 | H87: =SUMPRODUCT($D$20:$D$21,H166:H167) -> 0 | I87: =SUMPRODUCT($D$20:$D$21,I166:I167) -> 0 | J87: =SUMPRODUCT($D$20:$D$21,J166:J167) -> 0 | K87: =SUMPRODUCT($D$20:$D$21,K166:K167) -> 0 | L87: =SUMPRODUCT($D$20:$D$21,L166:L167) -> 0 | M87: =SUMPRODUCT($D$20:$D$21,M166:M167) -> 0 | N87: =SUMPRODUCT($D$20:$D$21,N166:N167) -> 0 | P87: 351 | Q87: N/A | R87: 0 | S87: 0 | T87: 0 | U87: 0 | W87: N/A | X87: =G754 -> 351 | Y87: N/A | AD87: =VLOOKUP(AB87,$P$65:$Q$94,2,FALSE) -> 0 | AF87: =VLOOKUP(AD87,$Q$64:$U$93,3,FALSE) ->  | AG87: =VLOOKUP(AD87,$Q$64:$U$93,3,FALSE) ->  | AH87: =VLOOKUP(AD87,$Q$64:$U$93,5,FALSE) -> 
D88: 0 | E88: Parade College, Bundoora | F88: =SUMPRODUCT($D$20:$D$21,F169:F170) -> 0 | G88: =SUMPRODUCT($D$20:$D$21,G169:G170) -> 0 | H88: =SUMPRODUCT($D$20:$D$21,H169:H170) -> 0 | I88: =SUMPRODUCT($D$20:$D$21,I169:I170) -> 0 | J88: =SUMPRODUCT($D$20:$D$21,J169:J170) -> 0 | K88: =SUMPRODUCT($D$20:$D$21,K169:K170) -> 0 | L88: =SUMPRODUCT($D$20:$D$21,L169:L170) -> 0 | M88: =SUMPRODUCT($D$20:$D$21,M169:M170) -> 0 | N88: =SUMPRODUCT($D$20:$D$21,N169:N170) -> 0 | P88: 5894 | Q88: N/A | R88: 0 | S88: 0 | T88: 0 | U88: 0 | W88: N/A | X88: =G776 -> 5894 | Y88: N/A | AA88: 18 | AB88: =LARGE($Y$65:$Y$102,AA88) ->  | AC88: =VLOOKUP(AB88,$X$65:$Z$88,3,FALSE) ->  | AD88: =VLOOKUP(AB88,$P$65:$Q$94,2,FALSE) ->  | AF88: =VLOOKUP(AD88,$Q$64:$U$93,3,FALSE) ->  | AG88: =VLOOKUP(AD88,$Q$64:$U$93,3,FALSE) ->  | AH88: =VLOOKUP(AD88,$Q$64:$U$93,5,FALSE) -> 
D89: =F89 -> 0 | E89: Whitefriars College, Donvale | F89: =SUMPRODUCT($D$20:$D$21,F181:F182) -> 0 | G89: =SUMPRODUCT($D$20:$D$21,G181:G182) -> 0 | H89: 0 | I89: 0 | J89: 0 | K89: 0 | L89: 0 | M89: 0 | N89: 0 | P89: =X89 -> 9874 | Q89: =IF(F89<0.5,"N/A",E89) -> N/A | R89: 0 | S89: 0 | T89: 0 | U89: 0 | W89: =Q89 -> N/A | X89: =G798 -> 9874 | Y89: =IF(W89="N/A","N/A",X89) -> N/A | Z89: =IF(F89<0.5,(W89^2),F89) ->  | AA89: 19 | AB89: =LARGE($Y$65:$Y$102,AA89) ->  | AC89: =VLOOKUP(AB89,$X$65:$Z$88,3,FALSE) ->  | AD89: =VLOOKUP(AB89,$P$65:$Q$94,2,FALSE) ->  | AE89: =AVERAGE(AF89:AH89) ->  | AF89: =VLOOKUP(AD89,$Q$64:$U$93,3,FALSE) ->  | AG89: =VLOOKUP(AD89,$Q$64:$U$93,3,FALSE) ->  | AH89: =VLOOKUP(AD89,$Q$64:$U$93,5,FALSE) -> 
D90: 1.018826472 | E90: Sherbourne Primary School, Briar Hill | F90: =SUMPRODUCT($D$18:$D$19,F175:F176) -> 1.018826472 | G90: =SUMPRODUCT($D$18:$D$19,G175:G176) -> 1.030031443 | H90: =SUMPRODUCT($D$18:$D$19,H175:H176) -> 1.033364033 | I90: =SUMPRODUCT($D$18:$D$19,I175:I176) -> 1.046070232 | J90: =SUMPRODUCT($D$18:$D$19,J175:J176) -> 1.056217294 | K90: =SUMPRODUCT($D$18:$D$19,K175:K176) -> 1.063737534 | L90: =SUMPRODUCT($D$18:$D$19,L175:L176) -> 1.008198503 | M90: =SUMPRODUCT($D$18:$D$19,M175:M176) -> 1.030576213 | N90: =SUMPRODUCT($D$18:$D$19,N175:N176) -> 1.046013007 | P90: 870 | Q90: Sherbourne Primary School, Briar Hill | R90: -0.01486837869 | S90: -0.01087827992 | T90: -0.01406818878 | U90: -0.02604391049 | W90: Sherbourne Primary School, Briar Hill | X90: =F859 -> 870 | Y90: 870 | Z90: 1.018826472 | AD90: =VLOOKUP(AB90,$P$65:$Q$94,2,FALSE) -> 0 | AF90: =VLOOKUP(AD90,$Q$64:$U$93,3,FALSE) ->  | AG90: =VLOOKUP(AD90,$Q$64:$U$93,3,FALSE) ->  | AH90: =VLOOKUP(AD90,$Q$64:$U$93,5,FALSE) -> 
D91: =F91 -> 0 | E91: Diamond Valley College | F91: =SUMPRODUCT($D$20:$D$21,F178:F179) -> 0 | G91: 0 | H91: 0 | I91: 0 | J91: 0 | K91: 0 | L91: 0 | M91: 0 | N91: 0 | P91: =X91 -> 414 | Q91: =IF(F91<0.5,"N/A",E91) -> N/A | R91: 0 | S91: 0 | T91: 0 | U91: 0 | W91: =Q91 -> N/A | X91: =F860 -> 414 | Y91: =IF(W91="N/A","N/A",X91) -> N/A | Z91: =IF(F91<0.5,(W91^2),F91) ->  | AD91: =VLOOKUP(AB91,$P$65:$Q$94,2,FALSE) -> 0 | AE91: =AVERAGE(AF91:AH91) ->  | AF91: =VLOOKUP(AD91,$Q$64:$U$93,3,FALSE) ->  | AG91: =VLOOKUP(AD91,$Q$64:$U$93,3,FALSE) ->  | AH91: =VLOOKUP(AD91,$Q$64:$U$93,5,FALSE) -> 
D92: =F92 -> 1.085044652 | E92: Alphington Grammar School | F92: =SUMPRODUCT($D$18:$D$21,F184:F187) -> 1.085044652 | G92: =SUMPRODUCT($D$18:$D$21,G184:G187) -> 1.068436474 | H92: 1.067381188 | I92: 1.071653823 | J92: 1.074434222 | K92: 1.082642899 | L92: 1.083613294 | M92: 1.088831511 | N92: 1.105764422 | P92: =X92 -> 13932 | Q92: =IF(F92<0.5,"N/A",E92) -> Alphington Grammar School | R92: 0.01523580782 | S92: 0.01554437621 | T92: 0.01654841233 | U92: 0.0124954801 | W92: =Q92 -> Alphington Grammar School | X92: =G820 -> 13932 | Y92: =IF(W92="N/A","N/A",X92) -> 13932 | Z92: =IF(F92<0.5,(W92^2),F92) -> 1.085044652 | AD92: =VLOOKUP(AB92,$P$65:$Q$94,2,FALSE) -> 0 | AE92: =AVERAGE(AF92:AH92) ->  | AF92: =VLOOKUP(AD92,$Q$64:$U$93,3,FALSE) ->  | AG92: =VLOOKUP(AD92,$Q$64:$U$93,3,FALSE) ->  | AH92: =VLOOKUP(AD92,$Q$64:$U$93,5,FALSE) -> 
D93: 1.060070428 | E93: Area Average | F93: =SUM(F65:F91)/F94 -> 1.060070428 | G93: =SUM(G65:G91)/G94 -> 1.056528775 | H93: =SUM(H65:H91)/H94 -> 1.058001084 | I93: =SUM(I65:I91)/I94 -> 1.057153281 | J93: =SUM(J65:J91)/J94 -> 1.057601898 | K93: =SUM(K65:K91)/K94 -> 1.065852399 | L93: =SUM(L65:L91)/L94 -> 1.067414843 | M93: =SUM(M65:M91)/M94 -> 1.045638864 | N93: =SUM(N65:N91)/N94 -> 1.060297796 | P93: 5487.666667 | Q93: =IF(F93<0.5,"N/A",E93) -> Area Average | R93: 0.002814737322 | S93: 0.003352159851 | T93: 0.001955900058 | U93: 0.002759436894 | W93: =Q93 -> Area Average | X93: =Y93 -> 5487.666667 | Y93: =AVERAGE(Y65:Y90) -> 5487.666667 | Z93: 1.060070428 | AD93: =VLOOKUP(AB93,$P$65:$Q$94,2,FALSE) -> 0 | AF93: =VLOOKUP(AD93,$Q$64:$U$93,3,FALSE) ->  | AG93: =VLOOKUP(AD93,$Q$64:$U$93,3,FALSE) ->  | AH93: =VLOOKUP(AD93,$Q$64:$U$93,5,FALSE) -> 
F94: =COUNTIF(F65:F91,">0.5") -> 15 | G94: =COUNTIF(G65:G91,">0.5") -> 15 | H94: =COUNTIF(H65:H91,">0.5") -> 15 | I94: =COUNTIF(I65:I91,">0.5") -> 15 | J94: =COUNTIF(J65:J91,">0.5") -> 15 | K94: =COUNTIF(K65:K91,">0.5") -> 15 | L94: =COUNTIF(L65:L91,">0.5") -> 15 | M94: =COUNTIF(M65:M91,">0.5") -> 15 | N94: =COUNTIF(N65:N91,">0.5") -> 15 | P94: 0 | AD94: =VLOOKUP(AB94,$P$65:$Q$94,2,FALSE) -> 0 | AF94: =VLOOKUP(AD94,$Q$64:$U$93,3,FALSE) ->  | AG94: =VLOOKUP(AD94,$Q$64:$U$93,3,FALSE) ->  | AH94: =VLOOKUP(AD94,$Q$64:$U$93,5,FALSE) -> 
P95: 0 | AD95: =VLOOKUP(AB95,$P$65:$Q$94,2,FALSE) -> 0 | AF95: =VLOOKUP(AD95,$Q$64:$U$93,3,FALSE) ->  | AG95: =VLOOKUP(AD95,$Q$64:$U$93,3,FALSE) ->  | AH95: =VLOOKUP(AD95,$Q$64:$U$93,5,FALSE) -> 
P96: 0 | AA96: 19 | AB96: =LARGE($Y$65:$Y$102,AA96) ->  | AC96: =VLOOKUP(AB96,$X$65:$Z$88,3,FALSE) ->  | AD96: =VLOOKUP(AB96,$P$65:$Q$94,2,FALSE) ->  | AF96: =VLOOKUP(AD96,$Q$64:$U$93,3,FALSE) ->  | AG96: =VLOOKUP(AD96,$Q$64:$U$93,3,FALSE) ->  | AH96: =VLOOKUP(AD96,$Q$64:$U$93,5,FALSE) -> 
E97: School Scores - by Grade, Weighted Score | P97: 0 | AA97: 20 | AB97: =LARGE($Y$65:$Y$102,AA97) ->  | AC97: =VLOOKUP(AB97,$X$65:$Z$88,3,FALSE) ->  | AD97: =VLOOKUP(AB97,$P$65:$Q$94,2,FALSE) ->  | AF97: =VLOOKUP(AD97,$Q$64:$U$93,3,FALSE) ->  | AG97: =VLOOKUP(AD97,$Q$64:$U$93,3,FALSE) ->  | AH97: =VLOOKUP(AD97,$Q$64:$U$93,5,FALSE) -> 
E98: School Scores - by Grade, Weighted Score | F98: 2016 | G98: 2015 | H98: 2014 | I98: 2013 | J98: 2012 | K98: 2011 | L98: 2010 | M98: 2009 | N98: 2008 | P98: 0 | AG98: =VLOOKUP(AD98,$Q$64:$U$93,3,FALSE) ->  | AH98: =VLOOKUP(AD98,$Q$64:$U$93,5,FALSE) -> 
D99: Catholic Ladies' College | E99: CLC - Grade 7 | F99: =F248/F219 -> 1.070658237 | G99: 1.049107143 | H99: 1.060921248 | I99: 1.059612519 | J99: 1.051358392 | K99: 1.066318927 | L99: 1.065016624 | M99: 1.051557864 | N99: 1.063361908 | P99: 0
D100: Catholic Ladies' College | E100: CLC Grade 9 | F100: =F256/F227 -> 1.052998605 | G100: 1.052264808 | H100: 1.045581072 | I100: 1.054975644 | J100: 1.056234719 | K100: 1.05759889 | L100: 1.062045061 | M100: 1.058191895 | N100: 1.056695652 | P100: 0
D101: Catholic Ladies' College | E101: CLC Average | F101: =AVERAGE(F99:F100) -> 1.061828421 | G101: =AVERAGE(G99:G100) -> 1.050685976 | H101: 1.05325116 | I101: 1.057294081 | J101: 1.053796556 | K101: 1.061958908 | L101: 1.063530842 | M101: 1.054874879 | N101: 1.06002878 | P101: 0
D102: Eltham High | E102: EH Grade 7 | F102: =F270/F219 -> 1.033841577 | G102: 1.023809524 | H102: 1.027488856 | I102: 1.004098361 | J102: 1.03126163 | K102: 1.033159463 | L102: 1.01256003 | M102: 1.038575668 | N102: 1.053671264 | P102: 0
D103: Eltham High | E103: EH Grade 9 | F103: =F278/F256 -> 0.9675496689 | G103: 0.959602649 | H103: 0.9660565724 | I103: 0.944591029 | J103: 0.9613095238 | K103: 0.9921259843 | L103: 0.9928198433 | M103: 0.9819967267 | N103: 0.9703752469 | P103: 0
D104: Eltham High | E104: EH Av. | F104: =AVERAGE(F102:F103) -> 1.000695623 | G104: =AVERAGE(G102:G103) -> 0.9917060864 | H104: 0.9967727141 | I104: 0.9743446948 | J104: 0.9962855769 | K104: 1.012642724 | L104: 1.002689936 | M104: 1.010286197 | N104: 1.012023255 | P104: 0
D105: Eltham College | E105: E College Grade 3 | F105: =F292/F203 -> 1.022327791 | G105: 1.048991354 | H105: 1.092718447 | I105: 1.149203283 | J105: 1.04589372 | K105: 1.069032572 | L105: 1.121330724 | M105: 1.087573386 | N105: 1.183714002 | P105: 0
D106: Eltham College | E106: E College Grade 5 | F106: =F300/F219 -> 0.9602082559 | G106: 0.9840029762 | H106: 0.940936107 | I106: 0.922876304 | J106: 0.9527353926 | K106: 0.9899403875 | L106: 0.9715552272 | M106: 0.949925816 | N106: 0.9504286247 | P106: 0
D107: Eltham College | E107: E College Grade 7 | F107: =F308/F219 -> 1.051320193 | G107: 1.072544643 | H107: 1.093982169 | I107: 1.07414307 | J107: 1.059545962 | K107: 1.071907601 | L107: 1.078684891 | M107: 1.044510386 | N107: 1.049571375 | P107: 0
D108: Eltham College | E108: E College Grade 9 | F108: =F316/F227 -> 1.077057183 | G108: 1.042508711 | H108: 1.06019485 | I108: 1.022964509 | J108: 1.077890325 | K108: 1.048924358 | L108: 1.040901213 | M108: 1.046761344 | N108: 1.044521739 | P108: 0
D109: Eltham College | E109: EH Av. | F109: =AVERAGE(F105:F108) -> 1.027728356 | G109: =AVERAGE(G105:G108) -> 1.037011921 | H109: =AVERAGE(H105:H108) -> 1.046957893 | I109: =AVERAGE(I105:I108) -> 1.042296792 | J109: =AVERAGE(J105:J108) -> 1.03401635 | K109: =AVERAGE(K105:K108) -> 1.044951229 | L109: =AVERAGE(L105:L108) -> 1.053118014 | M109: =AVERAGE(M105:M108) -> 1.032192733 | N109: =AVERAGE(N105:N108) -> 1.057058935 | P109: 0
D110: Montmorency Primary School | E110: MPS - Grade 3 | F110: =F330/F203 -> 1.129691211 | G110: 1.172430355 | H110: 1.15631068 | I110: 1.070497344 | J110: 1.063285024 | K110: 1.049100632 | L110: 1.138454012 | M110: 1 | N110: =N330/N203 -> 1.107249255 | P110: 0
D111: Montmorency Primary School | E111: MPS Grade 5 | F111: =F338/F211 -> 1.110571081 | G111: =G338/G211 -> 1.049372724 | H111: =H338/H211 -> 1.067913786 | I111: =I338/I211 -> 1.010158472 | J111: =J338/J211 -> 1.018806214 | K111: 1 | L111: 1 | M111: =M338/M211 -> 0.9869547493 | N111: =N338/N211 -> 0.9925803792 | P111: 0
D112: Montmorency Primary School | E112: MPS Average | F112: =AVERAGE(F110:F111) -> 1.120131146 | G112: =AVERAGE(G110:G111) -> 1.11090154 | H112: 1.112112233 | I112: 1.040327908 | J112: 1.041045619 | K112: 1.024550316 | L112: 1.069227006 | M112: 0.9934773746 | N112: 1.049914817 | P112: 0
D113: Montmorency South Primary School | E113: MontySth PS - Grade 3 | F113: =F352/F203 -> 1.118289786 | G113: 1.153698367 | H113: 1.149029126 | I113: 1.095123129 | J113: 1.092270531 | K113: 1.136606709 | L113: 1.124266145 | M113: 1.143835616 | N113: 1.119662363 | P113: 0
D114: Montmorency South Primary School | E114: MontySth PS - Grade 5 | F114: =F360/F211 -> 1.094775213 | G114: 1.023876973 | H114: 1.061407076 | I114: 1.075985372 | J114: 1.076042518 | K114: 1.075757576 | L114: 1.074346405 | M114: 1.02690583 | N114: 1.047815334 | P114: 0
D115: Montmorency South Primary School | E115: MontySth PS - Average | F115: =AVERAGE(F113:F114) -> 1.106532499 | G115: =AVERAGE(G113:G114) -> 1.08878767 | H115: 1.105218101 | I115: 1.08555425 | J115: 1.084156525 | K115: 1.106182142 | L115: 1.099306275 | M115: 1.085370723 | N115: 1.083738849 | P115: 0
D116: Greenhills | E116: Greenhills - Grade 3 | F116: =F374/F203 -> 1.10023753 | G116: =G355/G206 -> 1.044088176 | H116: 1.097804391 | I116: 1.083665339 | J116: 1.111336032 | K116: 1.116803279 | L116: 1.098562628 | M116: 0.9129554656 | N116: 1.055785124 | P116: 0
D117: Greenhills | E117: Greenhills - Grade 5 | F117: =F382/F211 -> 1.029971648 | G117: =G382/G211 -> 1.054229057 | H117: 1.07157381 | I117: 1.065420561 | J117: 1.026165168 | K117: 1.024570025 | L117: 1.036356209 | M117: 1.025682837 | N117: 1.070898599 | P117: 0
D118: Greenhills | E118: Greenhilss - Average | F118: =AVERAGE(F116:F117) -> 1.065104589 | G118: =AVERAGE(G116:G117) -> 1.049158617 | H118: 1.084689101 | I118: 1.07454295 | J118: 1.0687506 | K118: 1.070686652 | L118: 1.067459419 | M118: 0.9693191515 | N118: 1.063341861 | P118: 0
D119: Montmorency Secondary | E119: Montmorency Secondary - Grade 7 | F119: =F396/F219 -> 1.013759762 | G119: =G396/G219 -> 1.010044643 | H119: 0.9881129272 | I119: 1.001117735 | J119: 1.004465947 | K119: 1.030178838 | L119: 0.9981529368 | M119: 0.9847922849 | N119: 1.000745434 | P119: 0
D120: Montmorency Secondary | E120: Montmorency Secondary - Grade 9 | F120: =F404/F227 -> 0.9839609484 | G120: =G404/G227 -> 1.008362369 | H120: 0.9993041058 | I120: 0.9982602644 | J120: 0.9863779253 | K120: 0.9882026371 | L120: 1.002079723 | M120: 1.001731902 | N120: 0.9937391304 | P120: 0
D121: Montmorency Secondary | E121: Montmorency Secondary - Average | F121: =AVERAGE(F119:F120) -> 0.9988603552 | G121: =AVERAGE(G119:G120) -> 1.009203506 | H121: 0.9937085165 | I121: 0.9996889996 | J121: 0.9954219362 | K121: 1.009190737 | L121: 1.00011633 | M121: 0.9932620932 | N121: 0.9972422823 | P121: 0
D122: St Francis Xavier | E122: St Francis Xavier - Grade 3 | F122: =F418/F203 -> 1.049406176 | G122: =G418/G203 -> 1.050912584 | H122: 1.057281553 | I122: 1.051183003 | J122: 1.096135266 | K122: 1.061254254 | L122: 1.101761252 | M122: 1.088551859 | N122: 1.050148957 | P122: 0
D123: St Francis Xavier | E123: St Francis Xavier - Grade 5 | F123: =F426/F211 -> 1.039692183 | G123: =G426/G211 -> 1.009712667 | H123: 1.050020333 | I123: 1.037383178 | J123: 1.041291905 | K123: 1.054873055 | L123: 1.004493464 | M123: 1.044843049 | N123: 1.061417972 | P123: 0
D124: St Francis Xavier | E124: St Francis Xavier - Average | F124: =AVERAGE(F122:F123) -> 1.044549179 | G124: =AVERAGE(G122:G123) -> 1.030312625 | H124: 1.053650943 | I124: 1.04428309 | J124: 1.068713585 | K124: 1.058063654 | L124: 1.053127358 | M124: 1.066697454 | N124: 1.055783465 | P124: 0
D125: Lower Plenty Primary | E125: Lower Plenty Primary School - Grade 3 | F125: =F440/F203 -> 1.071258907 | G125: 1.061479347 | H125: 1.010679612 | I125: 1.128440367 | J125: 1.090821256 | K125: 1.171122995 | L125: 1.240704501 | M125: 1.086105675 | N125: 1.094836147 | P125: 0
D126: Lower Plenty Primary | E126: Lower Plenty Primary School - Grade 5 | F126: =F448/F211 -> 0.973673552 | G126: =G448/G211 -> 1.04815864 | H126: 1.043920293 | I126: 1.049979683 | J126: 1.029844644 | K126: 1.065520066 | L126: 1.172794118 | M126: 1.118222585 | N126: 1.061417972 | P126: 0
D127: Lower Plenty Primary | E127: Lower Plenty Primary School - Average | F127: =AVERAGE(F125:F126) -> 1.02246623 | G127: =AVERAGE(G125:G126) -> 1.054818994 | H127: 1.027299952 | I127: 1.089210025 | J127: 1.06033295 | K127: 1.11832153 | L127: 1.206749309 | M127: 1.10216413 | N127: 1.078127059 | P127: 0
D128: Plenty Valley Montessori | E128: Plenty Valley Montessori - Grade 3 | F128: =F462/F203 -> 1.031353919 | G128: 1.024495677 | H128: 1.093203883 | I128: 1.20907774 | J128: 1.033816425 | K128: 1.084103063 | L128: 1.085616438 | M128: 1.037181996 | N128: 1.077457795 | P128: 0
D129: Plenty Valley Montessori | E129: Plenty Valley Montessori - Grade 5 | F129: =F470/F211 -> 1.062778453 | G129: 1.095912586 | H129: 0.9979666531 | I129: 1.063388866 | J129: 1.073998365 | K129: 0.984029484 | L129: 1.04003268 | M129: 0.9311047697 | N129: 1.043693322 | P129: 0
D130: Plenty Valley Montessori | E130: Plenty Valley Montessori - Average | F130: =AVERAGE(F128:F129) -> 1.047066186 | G130: =AVERAGE(G128:G129) -> 1.060204132 | H130: =AVERAGE(H128:H129) -> 1.045585268 | I130: =AVERAGE(I128:I129) -> 1.136233303 | J130: =AVERAGE(J128:J129) -> 1.053907395 | K130: =AVERAGE(K128:K129) -> 1.034066273 | L130: =AVERAGE(L128:L129) -> 1.062824559 | M130: =AVERAGE(M128:M129) -> 0.9841433829 | N130: =AVERAGE(N128:N129) -> 1.060575559 | P130: 0
D131: St Helena Secondary College | E131: G7 | F131: =F484/F219 -> 1.022685013 | G131: =G484/G219 -> 1.027157738 | H131: 1.014858841 | I131: 1.017511177 | J131: 1.027540007 | K131: 1.029806259 | L131: 1.036941263 | M131: 1.022997033 | N131: 1.037644428 | P131: 0
E132: G9 | F132: =F492/F256 -> 0.9569536424 | G132: 0.9493377483 | H132: 0.965391015 | I132: 0.952176781 | J132: 0.9623015873 | K132: 0.9662073491 | L132: 0.9644255875 | M132: 0.9715220949 | N132: 0.9532587228 | P132: 0
E133: Average | F133: =AVERAGE(F131:F132) -> 0.9898193277 | G133: =AVERAGE(G131:G132) -> 0.9882477432 | H133: =AVERAGE(H131:H132) -> 0.990124928 | I133: 0.9848439792 | J133: 0.9949207974 | K133: 0.9980068042 | L133: 1.000683425 | M133: 0.9972595638 | N133: 0.9954515754 | P133: =X133 -> 0
D134: Eltham East Primary School | E134: G3 | F134: =F506/F203 -> 1.149168646 | G134: =G399/G222 -> 1.024137931 | H134: =H399/H222 -> 1.025862069 | I134: 1.005172414 | J134: 1 | K134: 0.9913793103 | L134: 1.012195122 | M134: 1.00862069 | N134: 1 | P134: 0
E135: G5 | F135: =F514/F211 -> 1.061158364 | G135: 1.065155807 | H135: 1.04554697 | I135: 1.048354328 | J135: 1.054374489 | K135: 1.076167076 | L135: 1.02369281 | M135: 1.049327354 | N135: 1.060181369 | P135: 0
E136: Average | F136: =AVERAGE(F134:F135) -> 1.105163505 | G136: =AVERAGE(G134:G135) -> 1.044646869 | H136: =AVERAGE(H134:H135) -> 1.03570452 | I136: 1.026763371 | J136: 1.027187244 | K136: 1.033773193 | L136: 1.017943966 | M136: 1.028974022 | N136: =AVERAGE(N134:N135) -> 1.030090684 | P136: 0
D137: Eltham Primary School | E137: G3 | F137: =F528/F203 -> 1.093586698 | G137: 1.137848223 | H137: 1.131553398 | I137: 1.144857557 | J137: 1.113043478 | K137: 1.085561497 | L137: 1.09295499 | M137: 1.120841487 | N137: 1.109731877 | P137: 0
E138: G5 | F138: =F536/F211 -> 1.064398542 | G138: 1.091460947 | H138: 1.0849939 | I138: 1.024786672 | J138: 1.089533933 | K138: 1.069205569 | L138: 1.044526144 | M138: 1.093355075 | N138: 1.044929926 | P138: 0
E139: Average | F139: =AVERAGE(F137:F138) -> 1.07899262 | G139: =AVERAGE(G137:G138) -> 1.114654585 | H139: 1.108273649 | I139: 1.084822114 | J139: 1.101288706 | K139: 1.077383533 | L139: 1.068740567 | M139: 1.107098281 | N139: 1.077330901 | P139: 0
D140: Our Lady Help of Christians School (Eltham) | E140: G3 | F140: =F550/F203 -> 1.10783848 | G140: 1.074927954 | H140: 1.062135922 | I140: 1.040560116 | J140: 1.080676329 | K140: 1.046669908 | L140: 1.019569472 | M140: 1.093933464 | N140: 1.104270109 | P140: 0
E141: G5 | F141: =F558/F211 -> 1.064398542 | G141: 1.046944557 | H141: 1.044733632 | I141: 1.028443722 | J141: 1.021668029 | K141: 1.053235053 | L141: 1.055147059 | M141: 1.100285365 | N141: 1.073371805 | P141: 0
E142: Average | F142: =AVERAGE(F140:F141) -> 1.086118511 | G142: =AVERAGE(G140:G141) -> 1.060936255 | H142: 1.053434777 | I142: 1.034501919 | J142: 1.051172179 | K142: 1.04995248 | L142: 1.037358265 | M142: 1.097109414 | N142: 1.088820957 | P142: 0
D143: Eltham North Primary School | E143: G3 | F143: =F572/F203 -> 1.094061758 | G143: =G572/G203 -> 1.064361191 | H143: 1.047572816 | I143: 1.074843071 | J143: 1.142028986 | K143: 1.148274186 | L143: 1.152641879 | M143: 1.114970646 | N143: 1.107249255 | P143: 0
E144: G5 | F144: =F580/F211 -> 1.030781693 | G144: =G580/G211 -> 1.038850668 | H144: 1.082960553 | I144: 1.077204388 | J144: 1.07686018 | K144: 1.087223587 | L144: 1.06495098 | M144: 1.062780269 | N144: 1.09274526 | P144: 0
E145: Average | F145: =AVERAGE(F143:F144) -> 1.062421725 | G145: =AVERAGE(G143:G144) -> 1.051605929 | H145: =AVERAGE(H143:H144) -> 1.065266684 | I145: =AVERAGE(I143:I144) -> 1.07602373 | J145: =AVERAGE(J143:J144) -> 1.109444583 | K145: =AVERAGE(K143:K144) -> 1.117748886 | L145: =AVERAGE(L143:L144) -> 1.10879643 | M145: =AVERAGE(M143:M144) -> 1.088875457 | N145: =AVERAGE(N143:N144) -> 1.099997257 | P145: 0
D146: Apollo Parkways Primary School (Greensborough) | E146: G3 | F146: =F594/F203 -> 1.088361045 | G146: =G594/G203 -> 1.053794428 | H146: 1.075242718 | I146: 1.101883148 | J146: 1.083091787 | K146: 1.1137579 | L146: 1.110567515 | M146: 1.088062622 | N146: 1.098808342 | P146: 0
E147: G5 | F147: =F602/F211 -> 1.059133252 | G147: =G602/G211 -> 1.069202752 | H147: 1.050833672 | I147: 1.082893133 | J147: 1.070318888 | K147: 1.066339066 | L147: 1.065359477 | M147: 1.066449246 | N147: 1.110469909 | P147: 0
E148: Average | F148: =AVERAGE(F146:F147) -> 1.073747149 | G148: =AVERAGE(G146:G147) -> 1.06149859 | H148: =AVERAGE(H146:H147) -> 1.063038195 | I148: =AVERAGE(I146:I147) -> 1.092388141 | J148: =AVERAGE(J146:J147) -> 1.076705338 | K148: =AVERAGE(K146:K147) -> 1.090048483 | L148: =AVERAGE(L146:L147) -> 1.087963496 | M148: =AVERAGE(M146:M147) -> 1.077255934 | N148: =AVERAGE(N146:N147) -> 1.104639125 | P148: 0
D149: Greensborough Secondary College | E149: G7 | F149: =F638/F219 -> 0.981405727 | G149: 0.9594494048 | H149: 0.9940564636 | I149: 0.9720566319 | J149: 0.971715668 | K149: 0.9847242921 | L149: 0.9811599557 | M149: 0.9736646884 | N149: 1.014535967 | P149: 0
E150: G9 | F150: =F646/F227 -> 0.9832635983 | G150: 0.9540069686 | H150: 0.9631176061 | I150: 0.9725121781 | J150: 0.9846315054 | K150: 0.9843858432 | L150: 0.9663778163 | M150: 0.9747142362 | N150: 0.9753043478 | P150: 0
E151: Average | F151: =AVERAGE(F149:F150) -> 0.9823346627 | G151: =AVERAGE(G149:G150) -> 0.9567281867 | H151: =AVERAGE(H149:H150) -> 0.9785870349 | I151: =AVERAGE(I149:I150) -> 0.972284405 | J151: =AVERAGE(J149:J150) -> 0.9781735867 | K151: =AVERAGE(K149:K150) -> 0.9845550676 | L151: =AVERAGE(L149:L150) -> 0.973768886 | M151: =AVERAGE(M149:M150) -> 0.9741894623 | N151: =AVERAGE(N149:N150) -> 0.9949201575 | P151: 0
D152: Ivanhoe Grammar School | E152: G3 | F152: =F660/F292 -> 1.039962825 | G152: 1.041208791 | H152: 0.9369169258 | I152: 0.931092437 | J152: 1.053117783 | K152: 1.019554343 | L152: 1.001308901 | M152: 1.010346379 | N152: 0.9265939597 | P152: 0
E153: G5 | F153: =F668/F211 -> 1.008100446 | G153: 1.055038446 | H153: 1.082960553 | I153: 1.042665583 | J153: 1.066639411 | K153: 1.075348075 | L153: 1.051470588 | M153: 1.082755809 | N153: 1.056471558 | P153: 0
E154: G7 | F154: =F676/F219 -> 1.078467832 | G154: 1.06547619 | H154: 1.088038633 | I154: 1.077868852 | J154: 1.074432453 | K154: 1.081222057 | L154: 1.084595493 | M154: 1.070845697 | N154: 1.083488632
E155: G9 | F155: =F684/F316 -> 1.000323729 | G155: 1.02540107 | H155: 1.000328192 | I155: 1.043877551 | J155: 0.9912508101 | K155: 1.016539861 | L155: 1.022977023 | M155: 1.013236267 | N155: 1.028638029
E156: Average | F156: =AVERAGE(F152:F155) -> 1.031713708 | G156: =AVERAGE(G152:G155) -> 1.046781124 | H156: 1.027061076 | I156: 1.023876106 | J156: 1.046360114 | K156: 1.048166084 | L156: 1.040088001 | M156: 1.044296038 | N156: 1.023798045
D157: Templestowe College | E157: G7 | F157: =F698/F219 -> 1.062476757 | G157: 1.038318452 | H157: 1.009658247 | I157: 1.008196721 | J157: 0.9713435058 | K157: 0.9560357675 | L157: 1.010712966 | M157: 0.9491839763 | N157: 1.020872158
E158: G9 | F158: =F706/F227 -> 1.00348675 | G158: 1.035888502 | H158: 0.9832985386 | I158: 0.9697286013 | J158: 0.9905693329 | K158: 0.9618320611 | L158: 0.9809358752 | M158: 0.9601662626 | N158: 0.9693913043
E159: Average | F159: =AVERAGE(F157:F158) -> 1.032981754 | G159: =AVERAGE(G157:G158) -> 1.037103477 | H159: =AVERAGE(H157:H158) -> 0.9964783926 | I159: =AVERAGE(I157:I158) -> 0.9889626613 | J159: =AVERAGE(J157:J158) -> 0.9809564193 | K159: =AVERAGE(K157:K158) -> 0.9589339143 | L159: =AVERAGE(L157:L158) -> 0.9958244208 | M159: =AVERAGE(M157:M158) -> 0.9546751194 | N159: =AVERAGE(N157:N158) -> 0.9951317312
D160: Marcellin College (Bulleen) | E160: G7 | F160: =F720/F219 -> 1.021569357 | G160: 1.026041667 | H160: 1.027860327 | I160: 1.027198212 | J160: 1.010792706 | K160: 1.023472429 | L160: 1.032508312 | M160: 1.023367953 | N160: 1.035780842
E161: G9 | F161: =F728/F227 -> 1.023361227 | G161: 1.026480836 | H161: 1.011830202 | I161: 1.029923452 | J161: 1.023052742 | K161: 1.037473976 | L161: 1.028769497 | M161: 1.033598892 | N161: 1.039304348
E162: Average | F162: =AVERAGE(F160:F161) -> 1.022465292 | G162: =AVERAGE(G160:G161) -> 1.026261251 | H162: =AVERAGE(H160:H161) -> 1.019845264 | I162: =AVERAGE(I160:I161) -> 1.028560832 | J162: =AVERAGE(J160:J161) -> 1.016922724 | K162: =AVERAGE(K160:K161) -> 1.030473203 | L162: =AVERAGE(L160:L161) -> 1.030638905 | M162: =AVERAGE(M160:M161) -> 1.028483422 | N162: =AVERAGE(N160:N161) -> 1.037542595
D163: Loyola College (Watsonia) | E163: G7 | F163: =F742/F219 -> 1.018966158 | G163: =G723/G222 -> 1.024137931 | H163: 1.005172414 | I163: 1.032758621 | J163: 1.031304348 | K163: 1.025862069 | L163: 1.024390244 | M163: 1.04137931 | N163: 1.048442907
E164: G9 | F164: =F750/F227 -> 0.9933751743 | G164: 0.9919860627 | H164: 0.9972164231 | I164: 1.017745303 | J164: 1.021655606 | K164: 1.003122831 | L164: 1.027729636 | M164: 1.023207482 | N164: 1.04
E165: Average | F165: =AVERAGE(F163:F164) -> 1.006170666 | G165: =AVERAGE(G163:G164) -> 1.008061997 | H165: =AVERAGE(H163:H164) -> 1.001194418 | I165: =AVERAGE(I163:I164) -> 1.025251962 | J165: =AVERAGE(J163:J164) -> 1.026479977 | K165: =AVERAGE(K163:K164) -> 1.01449245 | L165: =AVERAGE(L163:L164) -> 1.02605994 | M165: =AVERAGE(M163:M164) -> 1.032293396 | N165: =AVERAGE(N163:N164) -> 1.044221453
D166: Bundoora Secondary Colllege | E166: G7 | F166: =F764/F219 -> 0.9137225734 | G166: 0.9464285714 | H166: 0.9583952452 | I166: 0.9549180328 | J166: 0.94901377 | K166: 0.9463487332 | L166: 0.951606945 | M166: 0.9640207715 | N166: 0.9623555721
E167: G9 | F167: =F772/F227 -> 0.9647838215 | G167: 0.9442508711 | H167: 0.9443284621 | I167: 0.943980515 | J167: 0.9273489347 | K167: 0.9420541291 | L167: 0.9504332756 | M167: 0.954277797 | N167: 0.9572173913
E168: Average | F168: =AVERAGE(F166:F167) -> 0.9392531975 | G168: =AVERAGE(G166:G167) -> 0.9453397213 | H168: =AVERAGE(H166:H167) -> 0.9513618536 | I168: =AVERAGE(I166:I167) -> 0.9494492739 | J168: =AVERAGE(J166:J167) -> 0.9381813523 | K168: =AVERAGE(K166:K167) -> 0.9442014312 | L168: =AVERAGE(L166:L167) -> 0.9510201103 | M168: =AVERAGE(M166:M167) -> 0.9591492843 | N168: =AVERAGE(N166:N167) -> 0.9597864817
D169: Parade College (Bundoora) | E169: G7 | F169: =F786/F219 -> 1.00409074 | G169: 1.001488095 | H169: 1.002600297 | I169: 1.005216095 | J169: 1.001860811 | K169: 1.008196721 | L169: 1.027705948 | M169: 1.003338279 | N169: 1.043607902
E170: G9 | F170: =F794/F227 -> 1.005927476 | G170: 1.006620209 | H170: 1.012874043 | I170: 1.019832985 | J170: 1.02200489 | K170: 1.005898681 | L170: 1.032235702 | M170: 1.017319016 | N170: 1.021565217
E171: Average | F171: =AVERAGE(F169:F170) -> 1.005009108 | G171: =AVERAGE(G169:G170) -> 1.004054152 | H171: =AVERAGE(H169:H170) -> 1.00773717 | I171: =AVERAGE(I169:I170) -> 1.01252454 | J171: =AVERAGE(J169:J170) -> 1.011932851 | K171: =AVERAGE(K169:K170) -> 1.007047701 | L171: =AVERAGE(L169:L170) -> 1.029970825 | M171: =AVERAGE(M169:M170) -> 1.010328648 | N171: =AVERAGE(N169:N170) -> 1.032586559
D172: Briar Hill Primary School | E172: G3 | F172: =F616/F203 -> 1.011401425 | G172: =G616/G203 -> 1.032180596 | H172: 1.073300971 | I172: 0.9261226461 | J172: 0.9400966184 | K172: 1.088478367 | L172: 1.042074364 | M172: 0.9990215264 | N172: 1.027308838
E173: G5 | F173: =F624/F211 -> 1.07290401 | G173: =G624/G211 -> 1.000809389 | H173: 1.018706791 | I173: 1.058919139 | J173: 1.056418643 | K173: 1.015561016 | L173: 1.021650327 | M173: 0.9620872401 | N173: 0.9649629019
E174: Average | F174: =AVERAGE(F172:F173) -> 1.042152717 | G174: =AVERAGE(G172:G173) -> 1.016494992 | H174: =AVERAGE(H172:H173) -> 1.046003881 | I174: =AVERAGE(I172:I173) -> 0.9925208923 | J174: =AVERAGE(J172:J173) -> 0.9982576305 | K174: =AVERAGE(K172:K173) -> 1.052019691 | L174: =AVERAGE(L172:L173) -> 1.031862345 | M174: =AVERAGE(M172:M173) -> 0.9805543833 | N174: =AVERAGE(N172:N173) -> 0.99613587
D175: Sherbourne Primary School | E175: G3 | F175: =F869/F203 -> 1.019002375 | G175: =G869/G203 -> 1.02209414 | H175: 1.009223301 | I175: 1.048768711 | J175: 1.048309179 | K175: 1.048128342 | L175: 0.9931506849 | M175: 1.032778865 | N175: 1.031777557
E176: G5 | F176: =F877/F211 -> 1.018631025 | G176: =G877/G211 -> 1.038850668 | H176: 1.060187068 | I176: 1.043071922 | J176: 1.065004088 | K176: 1.081081081 | L176: 1.024918301 | M176: 1.028128822 | N176: 1.061830173
E177: Average | F177: =AVERAGE(F175:F176) -> 1.0188167 | G177: =AVERAGE(G175:G176) -> 1.030472404 | H177: =AVERAGE(H175:H176) -> 1.034705184 | I177: =AVERAGE(I175:I176) -> 1.045920316 | J177: =AVERAGE(J175:J176) -> 1.056656634 | K177: =AVERAGE(K175:K176) -> 1.064604712 | L177: =AVERAGE(L175:L176) -> 1.009034493 | M177: =AVERAGE(M175:M176) -> 1.030453843 | N177: =AVERAGE(N175:N176) -> 1.046803865
D178: Diamond Valley College (Diamond Creek) | E178: G7 | F178: =F891/F219 -> 0.9921904054 | G178: =G891/G219 -> 0.9854910714 | H178: 1.002600297 | I178: 0.990685544 | J178: 0.9951618906 | K178: 0.9869597615 | L178: 1.000738825 | M178: 0.9591988131 | N178: 1.00521804
E179: G9 | F179: =F899/F227 -> 1.003138075 | G179: =G899/G227 -> 0.9881533101 | H179: =H899/H227 -> 0.9836464857 | I179: =I899/I227 -> 0.9554627697 | J179: =J899/J227 -> 0.9947607405 | K179: =K899/K227 -> 0.9888965996 | L179: =L899/L227 -> 0.9989601386 | M179: =M899/M227 -> 0.9927260132 | N179: =N899/N227 -> 0.980173913
E180: Average | F180: =AVERAGE(F178:F179) -> 0.9976642403 | G180: =AVERAGE(G178:G179) -> 0.9868221908 | H180: 0.9931233915 | I180: 0.9730741568 | J180: 0.9949613155 | K180: 0.9879281806 | L180: 0.999849482 | M180: 0.9759624131 | N180: 0.9926959763
D181: Whitefriars College, Donvale | E181: G7 | F181: =F808/F219 -> 1.026403868 | G181: 1.035342262 | H181: 1.020430906 | I181: 1.040611028 | J181: 1.014142166 | K181: 1.032041729 | L181: 1.033985962 | M181: 1.041172107 | N181: =N808/N219 -> 1.043980619
E182: G9 | F182: =F816/F227 -> 1.017085077 | G182: =G816/G227 -> 1.036236934 | H182: 1.016353514 | I182: 1.024008351 | J182: 1.036325533 | K182: 1.034004164 | L182: 1.036048527 | M182: 1.039140977 | N182: 1.048347826
E183: Average | F183: =AVERAGE(F181:F182) -> 1.021744472 | G183: =AVERAGE(G181:G182) -> 1.035789598 | H183: 1.01839221 | I183: 1.03230969 | J183: 1.025233849 | K183: 1.033022946 | L183: 1.035017245 | M183: 1.040156542 | N183: 1.046164222
D184: Alphington Grammar School (Alphington) | E184: G3 | F184: =F830/F203 -> 1.085035629 | G184: =G830/G203 -> 1.043707973 | H184: 1.106796117 | I184: 1.10140029 | J184: =J830/J203 -> 1.054589372 | K184: 1.077783179 | L184: 1.1037182 | M184: 1.085127202 | N184: 1.131578947 | P184: =X184 -> 0
E185: G5 | F185: =F838/F211 -> 1.085054678 | G185: =G838/G211 -> 1.095912586 | H185: 1.023586824 | I185: 1.038602194 | J185: 1.096484056 | K185: 1.088042588 | L185: 1.06127451 | M185: 1.092947411 | N185: 1.077081616 | P185: 0
E186: G7 | F186: =F846/F219 -> 1.026403868 | G186: =G846/G219 -> 1.027901786 | H186: 1.073551263 | I186: 1.137853949 | J186: 1.072571641 | K186: 1.048062593 | L186: 1.052826007 | M186: 1.068991098 | N186: 1.083861349
E187: G9 | F187: =F854/F227 -> 1.073221757 | G187: =G854/G227 -> 1.052264808 | H187: 1.054627697 | I187: 1.088030619 | J187: 1.078938177 | K187: 1.052047189 | L187: 1.063431542 | M187: 1.056459993 | N187: 1.029565217
E188: Average | F188: =AVERAGE(F184:F187) -> 1.067428983 | G188: =AVERAGE(G184:G187) -> 1.054946788 | H188: 1.064640475 | I188: 1.091471763 | J188: 1.075645811 | K188: 1.066483888 | L188: 1.070312565 | M188: 1.075881426 | N188: 1.080521782
E195: Australian Mean by Grade | F195: 2016 | G195: 2015 | H195: 2014 | I195: 2013 | J195: 2012 | K195: 2011 | L195: 2010 | M195: 2009 | N195: 2008
E197: Year 3 - Mean All
E198: Reading | F198: 426 | G198: 426 | H198: 418 | I198: 419 | J198: 420 | K198: 416 | L198: 414 | M198: 411 | N198: 400
E199: Writing | F199: 421 | G199: 416 | H199: 402 | I199: 416 | J199: 416 | K199: 416 | L199: 419 | M199: 414 | N199: 414
E200: Spelling | F200: 420 | G200: 409 | H200: 412 | I200: 411 | J200: 414 | K200: 406 | L200: 399 | M200: 405 | N200: 400
E201: Grammar & Punctuation | F201: 436 | G201: 433 | H201: 426 | I201: 428 | J201: 424 | K201: 421 | L201: 417 | M201: 420 | N201: 403
E202: Numeracy | F202: 402 | G202: 398 | H202: 402 | I202: 397 | J202: 396 | K202: 398 | L202: 395 | M202: 394 | N202: 397
E203: Score | F203: =SUMPRODUCT(F198:F202,$D$10:$D$14) -> 421 | G203: 416.4 | H203: 412 | I203: 414.2 | J203: 414 | K203: 411.4 | L203: 408.8 | M203: 408.8 | N203: 402.8
E205: Year 5 - Mean All
E206: Reading | F206: 502 | G206: 499 | H206: 501 | I206: 502 | J206: 494 | K206: 488 | L206: 487 | M206: 494 | N206: 484
E207: Writing | F207: 476 | G207: 478 | H207: 468 | I207: 478 | J207: 477 | K207: 483 | L207: 485 | M207: 485 | N207: 486
E208: Spelling | F208: 493 | G208: 498 | H208: 498 | I208: 494 | J208: 495 | K208: 484 | L208: 487 | M208: 487 | N208: 484
E209: Grammar & Punctuation | F209: 505 | G209: 503 | H209: 504 | I209: 501 | J209: 491 | K209: 499 | L209: 500 | M209: 500 | N209: 496
E210: Numeracy | F210: 493 | G210: 493 | H210: 488 | I210: 486 | J210: 489 | K210: 488 | L210: 489 | M210: 487 | N210: 476
E211: Score | F211: =SUMPRODUCT(F206:F210,$D$10:$D$14) -> 493.8 | G211: 494.2 | H211: 491.8 | I211: 492.2 | J211: 489.2 | K211: 488.4 | L211: 489.6 | M211: 490.6 | N211: 485.2
E213: Year 7 - Mean All
E214: Reading | F214: 541 | G214: 546 | H214: 546 | I214: 541 | J214: 542 | K214: 540 | L214: 546 | M214: 541 | N214: 536
E215: Writing | F215: 515 | G215: 511 | H215: 512 | I215: 517 | J215: 518 | K215: 529 | L215: 533 | M215: 532 | N215: 534
E216: Spelling | F216: 543 | G216: 547 | H216: 545 | I216: 549 | J216: 543 | K216: 538 | L216: 545 | M216: 540 | N216: 539
E217: Grammar & Punctuation | F217: 540 | G217: 541 | H217: 543 | I217: 535 | J217: 546 | K217: 532 | L217: 535 | M217: 539 | N217: 529
E218: Numeracy | F218: 550 | G218: 543 | H218: 546 | I218: 542 | J218: 538 | K218: 545 | L218: 548 | M218: 544 | N218: 545
E219: Score | F219: =SUMPRODUCT(F214:F218,$D$10:$D$14) -> 537.8 | G219: 537.6 | H219: 538.4 | I219: 536.8 | J219: 537.4 | K219: 536.8 | L219: 541.4 | M219: 539.2 | N219: 536.6
E221: Year 9 - Mean All
E222: Reading | F222: 581 | G222: 580 | H222: 580 | I222: 580 | J222: 575 | K222: 580 | L222: 574 | M222: 580 | N222: 578
E223: Writing | F223: 549 | G223: 547 | H223: 550 | I223: 554 | J223: 554 | K223: 566 | L223: 568 | M223: 568 | N223: 569
E224: Spelling | F224: 580 | G224: 583 | H224: 582 | I224: 583 | J224: 577 | K224: 581 | L224: 579 | M224: 576 | N224: 577
E225: Grammar & Punctuation | F225: 569 | G225: 568 | H225: 574 | I225: 573 | J225: 573 | K225: 572 | L225: 579 | M225: 574 | N225: 569
E226: Numeracy | F226: 589 | G226: 592 | H226: 588 | I226: 584 | J226: 584 | K226: 583 | L226: 585 | M226: 589 | N226: 582
E227: Score | F227: =SUMPRODUCT(F222:F226,$D$10:$D$14) -> 573.6 | G227: 574 | H227: 574.8 | I227: 574.8 | J227: 572.6 | K227: 576.4 | L227: 577 | M227: 577.4 | N227: 575
F229: 2016 | G229: 2015 | H229: 2014 | I229: 2013 | J229: 2012 | K229: 2011 | L229: 2010 | M229: 2009 | N229: 2008
E230: Year 3 | F230: =F203/$N$203 -> 1.045183714 | G230: =G203/$N$203 -> 1.033763654 | H230: 1.022840119 | I230: 1.028301887 | J230: 1.027805362 | K230: 1.021350546 | L230: 1.01489573 | M230: 1.01489573 | N230: 1
E231: Year 5 | F231: =F211/$N$211 -> 1.01772465 | G231: =G211/$N$211 -> 1.018549052 | H231: 1.013602638 | I231: 1.01442704 | J231: 1.008244023 | K231: 1.006595218 | L231: 1.009068425 | M231: 1.011129431 | N231: 1
E232: Year 7 | F232: =F219/$N$219 -> 1.002236303 | G232: =G219/$N$219 -> 1.001863586 | H232: 1.003354454 | I232: 1.000372717 | J232: 1.001490868 | K232: 1.000372717 | L232: 1.008945211 | M232: 1.004845322 | N232: 1
E233: Year 9 | F233: =F227/$N$227 -> 0.9975652174 | G233: =G227/$N$227 -> 0.9982608696 | H233: 0.9996521739 | I233: 0.9996521739 | J233: 0.995826087 | K233: 1.002434783 | L233: 1.003478261 | M233: 1.004173913 | N233: 1
E236: CLC
E237: Finances: total | F237: 19341 | G237: =F237 -> 19341 | H237: 18370 | I237: 17409 | J237: 16736 | K237: 15261 | L237: 13888 | M237: 12973
E238: _- Fees/Parent Contributions | F238: 8976 | G238: =F238 -> 8976 | H238: 8185 | I238: 7743 | J238: 7351 | K238: 6555 | L238: 5870 | M238: 5291
E239: _- Other Private Sources | F239: 522 | G239: 522 | H239: 757 | I239: 733 | J239: 762 | K239: 690 | L239: 643 | M239: 535
E240: _- Finances - Govt. Funding | F240: =F237-SUM(F238:F239) -> 9843 | G240: =G237-SUM(G238:G239) -> 9843 | H240: 9428 | I240: 8933 | J240: 8623 | K240: 8016 | L240: 7375 | M240: 7147 | N240: 0
E242: Year 7
E243: Reading | F243: 582 | G243: 576 | H243: 576 | I243: 572 | J243: 567 | K243: 577 | L243: 582 | M243: 579 | N243: 570
E244: Writing | F244: 571 | G244: 554 | H244: 571 | I244: 571 | J244: 573 | K244: 584 | L244: 591 | M244: 573 | N244: 593
E245: Spelling | F245: 567 | G245: 559 | H245: 568 | I245: 574 | J245: 563 | K245: 562 | L245: 571 | M245: 556 | N245: 562
E246: Grammar & Punctuation | F246: 586 | G246: 575 | H246: 583 | I246: 574 | J246: 576 | K246: 576 | L246: 574 | M246: 576 | N246: 575
E247: Numeracy | F247: 573 | G247: 556 | H247: 558 | I247: 553 | J247: 546 | K247: 563 | L247: 565 | M247: 551 | N247: 553
E248: Score | F248: =SUMPRODUCT(F243:F247,$D$10:$D$14) -> 575.8 | G248: 564 | H248: 571.2 | I248: 568.8 | J248: 565 | K248: 572.4 | L248: 576.6 | M248: 567 | N248: 570.6
E250: Year 9
E251: Reading | F251: 613 | G251: 620 | H251: 607 | I251: 611 | J251: 603 | K251: 603 | L251: 604 | M251: 622 | N251: 614
... 564 more rows
